{"text_format":"1","workbook":"xlsx","n_sheets":5,"sheets":["Instructions","Summary","Details","OG_TITLE-Short","OG_TITLE-UTS"],"not_rendered":{"charts":5,"images":1,"macros":1,"external_links":0,"defined_names":0,"comments":1,"pivot_tables":0},"unopened":[],"bounds":{"document_bytes":16777216,"sheet_cells":100000,"rows_first":2000,"rows_last":500,"rows_between":2000,"halvings":0,"cell_chars":16384,"cell_head_chars":4096},"cells_cut":0,"cells_raw":0,"read":"whole","date_system":"1900"}

{"sheet":"Instructions","index":0,"n_rows":21,"n_cols":8,"rows_kept":21,"cut":false,"hidden":false,"merged":[[2,1,2,3],[3,1,3,3],[3,4,3,6]]}
[null,{"$f":"IFERROR(MAX(G8:G17),1)","v":554}]
[]
[null,"Domain URL",null,null,"www.break.com"]
[null,"Report Date:",null,null,"2013-08-29"]
[]
[]
[null,null,null,null,null,"Tag Names","URLs Crawled","Include Tag in Client Version"]
[null,null,null,null,1,"OG_TITLE",554,"Yes"]
[null,null,null,null,2,null,null,"Yes"]
[null,null,null,null,3,null,null,"Yes"]
[null,null,null,null,4,null,null,"Yes"]
[null,null,null,null,5,null,null,"Yes"]
[null,null,null,null,6,null,null,"Yes"]
[null,null,null,null,7,null,null,"Yes"]
[null,null,null,null,8,null,null,"Yes"]
[null,null,null,null,9,null,null,"Yes"]
[null,null,null,null,10,null,null,"Yes"]
[]
[null,"Step1: Check the client name and the Report Date. Date automatically saves the date when the file was opened first time."]
[null,"Step2: Check 'Summary' sheet and update 'Include Tag in Client Version' column of above table to 'No' if you don't want to include the Tag in client version."]
[null,"Step3:"]

{"sheet":"Summary","index":1,"n_rows":44,"n_cols":14,"rows_kept":44,"cut":false,"hidden":false,"merged":[[21,2,21,4],[21,6,21,7],[21,9,21,10],[21,12,21,13]]}
[false]
[]
[null,{"$f":"CONCATENATE(\"ADR Lite: \",Instructions!E3)","v":"ADR Lite: www.break.com"}]
[null,"Report Date:",{"$f":"Instructions!E4","v":"2013-08-29"}]
[]
[]
[]
[]
[]
[]
[]
[]
[]
[]
[]
[]
[]
[]
[]
[]
[]
[null,null,"Duplicate Tags Across Site",null,null,null,"Duplicate Tags on Page",null,null,"Multiple Tags on Page",null,null,"Tag Length"]
[null,null,"Unique","Duplicate","Total",null,"Unique","Duplicate",null,"Single","Multiple",null,"Short Tags","Long Tags"]
["No",null,"UTS","DTS",null,null,null,"DTP",null,null,"MTP",null,"Short","Long"]
[{"$f":"IF(B25=\"\",\"No\",\"Yes\")","v":"Yes"},{"$f":"IF(OR(Instructions!F8=\"\",Instructions!H8=\"No\"),\"\",Instructions!F8)","v":"OG_TITLE"},{"$f":"IF(COUNTA(INDIRECT(\"'\"&$B25&\"-\"&C$24&\"'!A:A\"))=1,\"\",COUNTA(INDIRECT(\"'\"&$B25&\"-\"&C$24&\"'!A:A\"))-1)","v":554},{"$f":"IF(COUNTA(INDIRECT(\"'\"&$B25&\"-\"&D$24&\"'!A:A\"))=1,\"\",COUNTA(INDIRECT(\"'\"&$B25&\"-\"&D$24&\"'!A:A\"))-1)","v":""},{"$f":"IF(OR(Instructions!F8=\"\",Instructions!H8=\"No\"),\"\",Instructions!G8)","v":554},null,{"$f":"IF(H25=\"\",E25,E25-H25)","v":554},{"$f":"IF(COUNTA(INDIRECT(\"'\"&$B25&\"-\"&H$24&\"'!A:A\"))=1,\"\",COUNTA(INDIRECT(\"'\"&$B25&\"-\"&H$24&\"'!A:A\"))-1)","v":""},null,{"$f":"IF(K25=\"\",E25,E25-K25)","v":554},{"$f":"IF(COUNTA(INDIRECT(\"'\"&$B25&\"-\"&K$24&\"'!A:A\"))=1,\"\",COUNTA(INDIRECT(\"'\"&$B25&\"-\"&K$24&\"'!A:A\"))-1)","v":""},null,{"$f":"IF(COUNTA(INDIRECT(\"'\"&$B25&\"-\"&M$24&\"'!A:A\"))=1,\"\",COUNTA(INDIRECT(\"'\"&$B25&\"-\"&M$24&\"'!A:A\"))-1)","v":67},{"$f":"IF(COUNTA(INDIRECT(\"'\"&$B25&\"-\"&N$24&\"'!A:A\"))=1,\"\",COUNTA(INDIRECT(\"'\"&$B25&\"-\"&N$24&\"'!A:A\"))-1)","v":""}]
[{"$f":"IF(B26=\"\",\"No\",\"Yes\")","v":"No"},{"$f":"IF(OR(Instructions!F9=\"\",Instructions!H9=\"No\"),\"\",Instructions!F9)","v":""},{"$f":"IF(COUNTA(INDIRECT(\"'\"&$B26&\"-\"&C$24&\"'!A:A\"))=1,\"\",COUNTA(INDIRECT(\"'\"&$B26&\"-\"&C$24&\"'!A:A\"))-1)","v":""},"",{"$f":"IF(OR(Instructions!F9=\"\",Instructions!H9=\"No\"),\"\",Instructions!G9)","v":""},null,{"$f":"IF(H26=\"\",E26,E26-H26)","v":""},{"$f":"IF(COUNTA(INDIRECT(\"'\"&$B26&\"-\"&H$24&\"'!A:A\"))=1,\"\",COUNTA(INDIRECT(\"'\"&$B26&\"-\"&H$24&\"'!A:A\"))-1)","v":""},null,{"$f":"IF(K26=\"\",E26,E26-K26)","v":""},{"$f":"IF(COUNTA(INDIRECT(\"'\"&$B26&\"-\"&K$24&\"'!A:A\"))=1,\"\",COUNTA(INDIRECT(\"'\"&$B26&\"-\"&K$24&\"'!A:A\"))-1)","v":""},null,{"$f":"IF(COUNTA(INDIRECT(\"'\"&$B26&\"-\"&M$24&\"'!A:A\"))=1,\"\",COUNTA(INDIRECT(\"'\"&$B26&\"-\"&M$24&\"'!A:A\"))-1)","v":""},""]
["No",{"$f":"IF(OR(Instructions!F10=\"\",Instructions!H10=\"No\"),\"\",Instructions!F10)","v":""},"","",{"$f":"IF(OR(Instructions!F10=\"\",Instructions!H10=\"No\"),\"\",Instructions!G10)","v":""},null,"","",null,"","",null,"",""]
["No",{"$f":"IF(OR(Instructions!F11=\"\",Instructions!H11=\"No\"),\"\",Instructions!F11)","v":""},"","",{"$f":"IF(OR(Instructions!F11=\"\",Instructions!H11=\"No\"),\"\",Instructions!G11)","v":""},null,"","",null,"","",null,"",""]
["No",{"$f":"IF(OR(Instructions!F12=\"\",Instructions!H12=\"No\"),\"\",Instructions!F12)","v":""},"","",{"$f":"IF(OR(Instructions!F12=\"\",Instructions!H12=\"No\"),\"\",Instructions!G12)","v":""},null,"","",null,"","",null,"",""]
["No",{"$f":"IF(OR(Instructions!F13=\"\",Instructions!H13=\"No\"),\"\",Instructions!F13)","v":""},"","",{"$f":"IF(OR(Instructions!F13=\"\",Instructions!H13=\"No\"),\"\",Instructions!G13)","v":""},null,"","",null,"","",null,"",""]
["No",{"$f":"IF(OR(Instructions!F14=\"\",Instructions!H14=\"No\"),\"\",Instructions!F14)","v":""},"","",{"$f":"IF(OR(Instructions!F14=\"\",Instructions!H14=\"No\"),\"\",Instructions!G14)","v":""},null,"","",null,"","",null,"",""]
["No",{"$f":"IF(OR(Instructions!F15=\"\",Instructions!H15=\"No\"),\"\",Instructions!F15)","v":""},"","",{"$f":"IF(OR(Instructions!F15=\"\",Instructions!H15=\"No\"),\"\",Instructions!G15)","v":""},null,"","",null,"","",null,"",""]
["No",{"$f":"IF(OR(Instructions!F16=\"\",Instructions!H16=\"No\"),\"\",Instructions!F16)","v":""},"","",{"$f":"IF(OR(Instructions!F16=\"\",Instructions!H16=\"No\"),\"\",Instructions!G16)","v":""},null,"","",null,"","",null,"",""]
["No",{"$f":"IF(OR(Instructions!F17=\"\",Instructions!H17=\"No\"),\"\",Instructions!F17)","v":""},"","",{"$f":"IF(OR(Instructions!F17=\"\",Instructions!H17=\"No\"),\"\",Instructions!G17)","v":""},null,"","",null,"","",null,"",""]
["No",{"$f":"IF(OR(Instructions!F18=\"\",Instructions!H18=\"No\"),\"\",Instructions!F18)","v":""},"","",{"$f":"IF(OR(Instructions!F18=\"\",Instructions!H18=\"No\"),\"\",Instructions!G18)","v":""},null,"","",null,"","",null,"",""]
["No",{"$f":"IF(OR(Instructions!F19=\"\",Instructions!H19=\"No\"),\"\",Instructions!F19)","v":""},"","",{"$f":"IF(OR(Instructions!F19=\"\",Instructions!H19=\"No\"),\"\",Instructions!G19)","v":""},null,"","",null,"","",null,"",""]
["No",{"$f":"IF(OR(Instructions!F20=\"\",Instructions!H20=\"No\"),\"\",Instructions!F20)","v":""},"","",{"$f":"IF(OR(Instructions!F20=\"\",Instructions!H20=\"No\"),\"\",Instructions!G20)","v":""},null,"","",null,"","",null,"",""]
["No",{"$f":"IF(OR(Instructions!F21=\"\",Instructions!H21=\"No\"),\"\",Instructions!F21)","v":""},"","",{"$f":"IF(OR(Instructions!F21=\"\",Instructions!H21=\"No\"),\"\",Instructions!G21)","v":""},null,"","",null,"","",null,"",""]
["No",{"$f":"IF(OR(Instructions!F22=\"\",Instructions!H22=\"No\"),\"\",Instructions!F22)","v":""},"","",{"$f":"IF(OR(Instructions!F22=\"\",Instructions!H22=\"No\"),\"\",Instructions!G22)","v":""},null,"","",null,"","",null,"",""]
["No",{"$f":"IF(OR(Instructions!F23=\"\",Instructions!H23=\"No\"),\"\",Instructions!F23)","v":""},"","",{"$f":"IF(OR(Instructions!F23=\"\",Instructions!H23=\"No\"),\"\",Instructions!G23)","v":""},null,"","",null,"","",null,"",""]
["No",{"$f":"IF(OR(Instructions!F24=\"\",Instructions!H24=\"No\"),\"\",Instructions!F24)","v":""},"","",{"$f":"IF(OR(Instructions!F24=\"\",Instructions!H24=\"No\"),\"\",Instructions!G24)","v":""},null,"","",null,"","",null,"",""]
["No",{"$f":"IF(OR(Instructions!F25=\"\",Instructions!H25=\"No\"),\"\",Instructions!F25)","v":""},"","",{"$f":"IF(OR(Instructions!F25=\"\",Instructions!H25=\"No\"),\"\",Instructions!G25)","v":""},null,"","",null,"","",null,"",""]
["No",{"$f":"IF(OR(Instructions!F26=\"\",Instructions!H26=\"No\"),\"\",Instructions!F26)","v":""},"","",{"$f":"IF(OR(Instructions!F26=\"\",Instructions!H26=\"No\"),\"\",Instructions!G26)","v":""},null,"","",null,"","",null,"",""]
["No",{"$f":"IF(OR(Instructions!F27=\"\",Instructions!H27=\"No\"),\"\",Instructions!F27)","v":""},"","",{"$f":"IF(OR(Instructions!F27=\"\",Instructions!H27=\"No\"),\"\",Instructions!G27)","v":""},null,"","",null,"","",null,"",""]

{"sheet":"Details","index":2,"n_rows":565,"n_cols":34,"rows_kept":565,"cut":false,"hidden":false,"merged":[[18,25,18,28],[11,25,11,28],[12,25,12,28],[13,25,13,28],[14,25,14,28],[15,25,15,28],[10,25,10,28],[8,25,8,28],[9,25,9,28],[16,25,16,28],[17,25,17,28]]}
[]
[]
[null,null,{"$f":"Summary!B3","v":"ADR Lite: www.break.com"}]
[]
[null,null,null,{"$f":"IF(D7<>\"MTP\",\"\",IF(MAX(E:E)>1,\"Diplicate Tags present on Page\",\"\"))","v":""}]
[2,null,"Tag Name",{"$f":"VLOOKUP(A6,P10:Q19,2,0)","v":""}]
[1,null,"Issue Type",{"$f":"VLOOKUP(A7,S10:U19,3,0)","v":""}]
[null,null,{"$f":"IF(C9=\"Tag Content\",\"C\",\"A\")","v":"A"},{"$f":"IF(D9=\"Tag Content\",\"C\",\"A\")","v":"C"},{"$f":"IF(E9=\"\",\"\",\"D\")","v":""}]
[1,null,{"$f":"IF(AND(D7<>\"DTS\",D7<>\"DTP\"),\"Source URL\",\"Tag Content\")","v":"Source URL"},{"$f":"IF(AND(D7<>\"DTS\",D7<>\"DTP\"),\"Tag Content\",\"Source URL\")","v":"Tag Content"},{"$f":"IF(OR(D7=\"long\",D7=\"short\"),\"Character Count\",IF(OR(D7=\"DTS\",D7=\"MTS\",D7=\"DTP\"),\"Instance Count\",\"\"))","v":""},null,null,null,null,null,null,null,null,null,null,null,"Tag Name",null,null,"Issue Type","Sheet Key",null,null,"Issue Types","Sheet Name Key","Sorting"]
[{"$f":"A9+1","v":2},null,{"$f":"IFERROR(INDIRECT(\"'\"&D$6&\"-\"&D$7&\"'!\"&C$8&$A10),\"\")","v":""},{"$f":"IFERROR(INDIRECT(\"'\"&D$6&\"-\"&D$7&\"'!\"&D$8&$A10),\"\")","v":""},{"$f":"IFERROR(INDIRECT(\"'\"&D$6&\"-\"&D$7&\"'!\"&E$8&$A10),\"\")","v":""},null,null,null,null,null,null,null,null,null,null,1,{"$f":"IF(Instructions!F8=\"\",\"\",IF(Instructions!H8=\"Yes\",Instructions!F8,\"\"))","v":"OG_TITLE"},null,1,{"$f":"IF(IFERROR(VLOOKUP(VLOOKUP($A$6,$P$9:$Q$19,2,0),$X$22:$AH$32,S10+1,0),\"\")=\"\",\"\",VLOOKUP(VLOOKUP($A$6,$P$9:$Q$19,2,0),$X$22:$AH$32,S10+1,0))","v":""},{"$f":"IFERROR(VLOOKUP(T10,$X$10:$Y$19,2,0),\"\")","v":""},null,1,"Duplicate Tags across site","DTS","Count Number of duplicate tags and sort by decending count then by Tag then URL"]
[{"$f":"A10+1","v":3},null,{"$f":"IFERROR(INDIRECT(\"'\"&D$6&\"-\"&D$7&\"'!\"&C$8&$A11),\"\")","v":""},{"$f":"IFERROR(INDIRECT(\"'\"&D$6&\"-\"&D$7&\"'!\"&D$8&$A11),\"\")","v":""},{"$f":"IFERROR(INDIRECT(\"'\"&D$6&\"-\"&D$7&\"'!\"&E$8&$A11),\"\")","v":""},null,null,null,null,null,null,null,null,null,null,2,{"$f":"IF(Instructions!F9=\"\",\"\",IF(Instructions!H9=\"Yes\",Instructions!F9,\"\"))","v":""},null,2,"",{"$f":"IFERROR(VLOOKUP(T11,$X$10:$Y$19,2,0),\"\")","v":""},null,2,"Unique Tags across Site","UTS","By URL"]
[4,null,{"$f":"IFERROR(INDIRECT(\"'\"&D$6&\"-\"&D$7&\"'!\"&C$8&$A12),\"\")","v":""},"",{"$f":"IFERROR(INDIRECT(\"'\"&D$6&\"-\"&D$7&\"'!\"&E$8&$A12),\"\")","v":""},null,null,null,null,null,null,null,null,null,null,3,{"$f":"IF(Instructions!F10=\"\",\"\",IF(Instructions!H10=\"Yes\",Instructions!F10,\"\"))","v":""},null,3,"","",null,3,"Multiple Tags on Page","MTP","Count Number of tags per URL and sort by decending count then by URL"]
[5,null,"","","",null,null,null,null,null,null,null,null,null,null,4,{"$f":"IF(Instructions!F11=\"\",\"\",IF(Instructions!H11=\"Yes\",Instructions!F11,\"\"))","v":""},null,4,"","",null,4,"Duplicate Tags on Page","DTP","Count Number of tags per URL and sort by decending count then by URL"]
[6,null,"","","",null,null,null,null,null,null,null,null,null,null,5,{"$f":"IF(Instructions!F12=\"\",\"\",IF(Instructions!H12=\"Yes\",Instructions!F12,\"\"))","v":""},null,5,"","",null,5,"Short Tags","Short","Increasing length and then by Tags"]
[7,null,"","","",null,null,null,null,null,null,null,null,null,null,6,{"$f":"IF(Instructions!F13=\"\",\"\",IF(Instructions!H13=\"Yes\",Instructions!F13,\"\"))","v":""},null,6,"","",null,6,"Long Tags","Long","Decreasing Length and then by Tags"]
[8,null,"","","",null,null,null,null,null,null,null,null,null,null,7,{"$f":"IF(Instructions!F14=\"\",\"\",IF(Instructions!H14=\"Yes\",Instructions!F14,\"\"))","v":""},null,7,"","",null,7,"Profanity","Profanity"]
[9,null,"","","",null,null,null,null,null,null,null,null,null,null,8,{"$f":"IF(Instructions!F15=\"\",\"\",IF(Instructions!H15=\"Yes\",Instructions!F15,\"\"))","v":""},null,8,"","",null,8]
[10,null,"","","",null,null,null,null,null,null,null,null,null,null,9,{"$f":"IF(Instructions!F16=\"\",\"\",IF(Instructions!H16=\"Yes\",Instructions!F16,\"\"))","v":""},null,9,"","",null,9]
[11,null,"","","",null,null,null,null,null,null,null,null,null,null,10,{"$f":"IF(Instructions!F17=\"\",\"\",IF(Instructions!H17=\"Yes\",Instructions!F17,\"\"))","v":""},null,10,"","",null,10]
[12,null,"","",""]
[13,null,"","",""]
[14,null,"","","",null,null,null,null,null,null,null,null,null,null,null,null,null,null,null,null,null,null,"Tag Name",1,2,3,4,5,6,7,8,9,10]
[15,null,"","","",null,null,null,null,null,null,null,null,null,null,null,null,null,null,null,null,null,1,"CANONICAL","Duplicate Tags across site","Unique Tags across Site","Multiple Tags on Page","Duplicate Tags on Page"]
[16,null,"","","",null,null,null,null,null,null,null,null,null,null,null,null,null,null,null,null,null,2,"OG_TITLE","Duplicate Tags across site","Unique Tags across Site","Multiple Tags on Page","Duplicate Tags on Page","Short Tags","Long Tags"]
[17,null,"","","",null,null,null,null,null,null,null,null,null,null,null,null,null,null,null,null,null,3,"OG_TYPE","Duplicate Tags across site","Unique Tags across Site","Multiple Tags on Page","Duplicate Tags on Page"]
[18,null,"","","",null,null,null,null,null,null,null,null,null,null,null,null,null,null,null,null,null,4,"OG_URL","Duplicate Tags across site","Unique Tags across Site","Multiple Tags on Page","Duplicate Tags on Page","Short Tags","Long Tags"]
[19,null,"","","",null,null,null,null,null,null,null,null,null,null,null,null,null,null,null,null,null,5,"OG_IMG","Duplicate Tags across site","Unique Tags across Site","Multiple Tags on Page","Duplicate Tags on Page"]
[20,null,"","","",null,null,null,null,null,null,null,null,null,null,null,null,null,null,null,null,null,6,""]
[21,null,"","","",null,null,null,null,null,null,null,null,null,null,null,null,null,null,null,null,null,7,""]
[22,null,"","","",null,null,null,null,null,null,null,null,null,null,null,null,null,null,null,null,null,8,""]
[23,null,"","","",null,null,null,null,null,null,null,null,null,null,null,null,null,null,null,null,null,9,""]
[24,null,"","","",null,null,null,null,null,null,null,null,null,null,null,null,null,null,null,null,null,10,""]
[25,null,"","",""]
[26,null,"","","",null,null,null,null,null,null,null,null,null,null,null,null,null,null,null,null,null,null,"Sheet Name",1,2,3,4,5,6,7,8,9,10]
[27,null,"","","",null,null,null,null,null,null,null,null,null,null,null,null,null,null,null,null,null,1,{"$f":"X23","v":"CANONICAL"},{"$f":"IF(OR($X35=\"\",Y23=\"\"),\"\",CONCATENATE($X35,\"-\",IFERROR(VLOOKUP(Y23,$X$10:$Y$19,2,0),\"\")))","v":"CANONICAL-DTS"},{"$f":"IF(OR($X35=\"\",Z23=\"\"),\"\",CONCATENATE($X35,\"-\",IFERROR(VLOOKUP(Z23,$X$10:$Y$19,2,0),\"\")))","v":"CANONICAL-UTS"},"CANONICAL-MTP","CANONICAL-DTP","","","","","",""]
[28,null,"","","",null,null,null,null,null,null,null,null,null,null,null,null,null,null,null,null,null,2,{"$f":"X24","v":"OG_TITLE"},{"$f":"IF(OR($X36=\"\",Y24=\"\"),\"\",CONCATENATE($X36,\"-\",IFERROR(VLOOKUP(Y24,$X$10:$Y$19,2,0),\"\")))","v":"OG_TITLE-DTS"},"OG_TITLE-UTS","OG_TITLE-MTP","OG_TITLE-DTP","OG_TITLE-Short","OG_TITLE-Long","","","",""]
[29,null,"","","",null,null,null,null,null,null,null,null,null,null,null,null,null,null,null,null,null,3,"OG_TYPE","OG_TYPE-DTS","OG_TYPE-UTS","OG_TYPE-MTP","OG_TYPE-DTP","","","","","",""]
[30,null,"","","",null,null,null,null,null,null,null,null,null,null,null,null,null,null,null,null,null,4,"OG_URL","OG_URL-DTS","OG_URL-UTS","OG_URL-MTP","OG_URL-DTP","OG_URL-Short","OG_URL-Long","","","",""]
[31,null,"","","",null,null,null,null,null,null,null,null,null,null,null,null,null,null,null,null,null,5,"OG_IMG","OG_IMG-DTS","OG_IMG-UTS","OG_IMG-MTP","OG_IMG-DTP","","","","","",""]
[32,null,"","","",null,null,null,null,null,null,null,null,null,null,null,null,null,null,null,null,null,6,"","","","","","","","","","",""]
[33,null,"","","",null,null,null,null,null,null,null,null,null,null,null,null,null,null,null,null,null,7,"","","","","","","","","","",""]
[34,null,"","","",null,null,null,null,null,null,null,null,null,null,null,null,null,null,null,null,null,8,"","","","","","","","","","",""]
[35,null,"","","",null,null,null,null,null,null,null,null,null,null,null,null,null,null,null,null,null,9,"","","","","","","","","","",""]
[36,null,"","","",null,null,null,null,null,null,null,null,null,null,null,null,null,null,null,null,null,10,"","","","","","","","","","",""]
[37,null,"","",""]
[38,null,"","",""]
[39,null,"","",""]
[40,null,"","",""]
[41,null,"","",""]
[42,null,"","",""]
[43,null,"","",""]
[44,null,"","",""]
[45,null,"","",""]
[46,null,"","",""]
[47,null,"","",""]
[48,null,"","",""]
[49,null,"","",""]
[50,null,"","",""]
[51,null,"","",""]
[52,null,"","",""]
[53,null,"","",""]
[54,null,"","",""]
[55,null,"","",""]
[56,null,"","",""]
[57,null,"","",""]
[58,null,"","",""]
[59,null,"","",""]
[60,null,"","",""]
[61,null,"","",""]
[62,null,"","",""]
[63,null,"","",""]
[64,null,"","",""]
[65,null,"","",""]
[66,null,"","",""]
[{"$f":"A74+1","v":67},null,"",{"$f":"IFERROR(INDIRECT(\"'\"&D$6&\"-\"&D$7&\"'!\"&D$8&$A75),\"\")","v":""},""]
[68,null,{"$f":"IFERROR(INDIRECT(\"'\"&D$6&\"-\"&D$7&\"'!\"&C$8&$A76),\"\")","v":""},"",{"$f":"IFERROR(INDIRECT(\"'\"&D$6&\"-\"&D$7&\"'!\"&E$8&$A76),\"\")","v":""}]
[69,null,"","",""]
[70,null,"","",""]
[71,null,"","",""]
[72,null,"","",""]
[73,null,"","",""]
[74,null,"","",""]
[75,null,"","",""]
[76,null,"","",""]
[77,null,"","",""]
[78,null,"","",""]
[79,null,"","",""]
[80,null,"","",""]
[81,null,"","",""]
[82,null,"","",""]
[83,null,"","",""]
[84,null,"","",""]
[85,null,"","",""]
[86,null,"","",""]
[87,null,"","",""]
[88,null,"","",""]
[89,null,"","",""]
[90,null,"","",""]
[91,null,"","",""]
[92,null,"","",""]
[93,null,"","",""]
[94,null,"","",""]
[95,null,"","",""]
[96,null,"","",""]
[97,null,"","",""]
[98,null,"","",""]
[99,null,"","",""]
[100,null,"","",""]
[101,null,"","",""]
[102,null,"","",""]
[103,null,"","",""]
[104,null,"","",""]
[105,null,"","",""]
[106,null,"","",""]
[107,null,"","",""]
[108,null,"","",""]
[109,null,"","",""]
[110,null,"","",""]
[111,null,"","",""]
[112,null,"","",""]
[113,null,"","",""]
[114,null,"","",""]
[115,null,"","",""]
[116,null,"","",""]
[117,null,"","",""]
[118,null,"","",""]
[119,null,"","",""]
[120,null,"","",""]
[121,null,"","",""]
[122,null,"","",""]
[123,null,"","",""]
[124,null,"","",""]
[125,null,"","",""]
[126,null,"","",""]
[127,null,"","",""]
[128,null,"","",""]
[129,null,"","",""]
[130,null,"","",""]
[{"$f":"A138+1","v":131},null,"",{"$f":"IFERROR(INDIRECT(\"'\"&D$6&\"-\"&D$7&\"'!\"&D$8&$A139),\"\")","v":""},""]
[132,null,{"$f":"IFERROR(INDIRECT(\"'\"&D$6&\"-\"&D$7&\"'!\"&C$8&$A140),\"\")","v":""},"",{"$f":"IFERROR(INDIRECT(\"'\"&D$6&\"-\"&D$7&\"'!\"&E$8&$A140),\"\")","v":""}]
[133,null,"","",""]
[134,null,"","",""]
[135,null,"","",""]
[136,null,"","",""]
[137,null,"","",""]
[138,null,"","",""]
[139,null,"","",""]
[140,null,"","",""]
[141,null,"","",""]
[142,null,"","",""]
[143,null,"","",""]
[144,null,"","",""]
[145,null,"","",""]
[146,null,"","",""]
[147,null,"","",""]
[148,null,"","",""]
[149,null,"","",""]
[150,null,"","",""]
[151,null,"","",""]
[152,null,"","",""]
[153,null,"","",""]
[154,null,"","",""]
[155,null,"","",""]
[156,null,"","",""]
[157,null,"","",""]
[158,null,"","",""]
[159,null,"","",""]
[160,null,"","",""]
[161,null,"","",""]
[162,null,"","",""]
[163,null,"","",""]
[164,null,"","",""]
[165,null,"","",""]
[166,null,"","",""]
[167,null,"","",""]
[168,null,"","",""]
[169,null,"","",""]
[170,null,"","",""]
[171,null,"","",""]
[172,null,"","",""]
[173,null,"","",""]
[174,null,"","",""]
[175,null,"","",""]
[176,null,"","",""]
[177,null,"","",""]
[178,null,"","",""]
[179,null,"","",""]
[180,null,"","",""]
[181,null,"","",""]
[182,null,"","",""]
[183,null,"","",""]
[184,null,"","",""]
[185,null,"","",""]
[186,null,"","",""]
[187,null,"","",""]
[188,null,"","",""]
[189,null,"","",""]
[190,null,"","",""]
[191,null,"","",""]
[192,null,"","",""]
[193,null,"","",""]
[194,null,"","",""]
[{"$f":"A202+1","v":195},null,"",{"$f":"IFERROR(INDIRECT(\"'\"&D$6&\"-\"&D$7&\"'!\"&D$8&$A203),\"\")","v":""},""]
[196,null,{"$f":"IFERROR(INDIRECT(\"'\"&D$6&\"-\"&D$7&\"'!\"&C$8&$A204),\"\")","v":""},"",{"$f":"IFERROR(INDIRECT(\"'\"&D$6&\"-\"&D$7&\"'!\"&E$8&$A204),\"\")","v":""}]
[197,null,"","",""]
[198,null,"","",""]
[199,null,"","",""]
[200,null,"","",""]
[201,null,"","",""]
[202,null,"","",""]
[203,null,"","",""]
[204,null,"","",""]
[205,null,"","",""]
[206,null,"","",""]
[207,null,"","",""]
[208,null,"","",""]
[209,null,"","",""]
[210,null,"","",""]
[211,null,"","",""]
[212,null,"","",""]
[213,null,"","",""]
[214,null,"","",""]
[215,null,"","",""]
[216,null,"","",""]
[217,null,"","",""]
[218,null,"","",""]
[219,null,"","",""]
[220,null,"","",""]
[221,null,"","",""]
[222,null,"","",""]
[223,null,"","",""]
[224,null,"","",""]
[225,null,"","",""]
[226,null,"","",""]
[227,null,"","",""]
[228,null,"","",""]
[229,null,"","",""]
[230,null,"","",""]
[231,null,"","",""]
[232,null,"","",""]
[233,null,"","",""]
[234,null,"","",""]
[235,null,"","",""]
[236,null,"","",""]
[237,null,"","",""]
[238,null,"","",""]
[239,null,"","",""]
[240,null,"","",""]
[241,null,"","",""]
[242,null,"","",""]
[243,null,"","",""]
[244,null,"","",""]
[245,null,"","",""]
[246,null,"","",""]
[247,null,"","",""]
[248,null,"","",""]
[249,null,"","",""]
[250,null,"","",""]
[251,null,"","",""]
[252,null,"","",""]
[253,null,"","",""]
[254,null,"","",""]
[255,null,"","",""]
[256,null,"","",""]
[257,null,"","",""]
[258,null,"","",""]
[{"$f":"A266+1","v":259},null,"",{"$f":"IFERROR(INDIRECT(\"'\"&D$6&\"-\"&D$7&\"'!\"&D$8&$A267),\"\")","v":""},""]
[260,null,{"$f":"IFERROR(INDIRECT(\"'\"&D$6&\"-\"&D$7&\"'!\"&C$8&$A268),\"\")","v":""},"",{"$f":"IFERROR(INDIRECT(\"'\"&D$6&\"-\"&D$7&\"'!\"&E$8&$A268),\"\")","v":""}]
[261,null,"","",""]
[262,null,"","",""]
[263,null,"","",""]
[264,null,"","",""]
[265,null,"","",""]
[266,null,"","",""]
[267,null,"","",""]
[268,null,"","",""]
[269,null,"","",""]
[270,null,"","",""]
[271,null,"","",""]
[272,null,"","",""]
[273,null,"","",""]
[274,null,"","",""]
[275,null,"","",""]
[276,null,"","",""]
[277,null,"","",""]
[278,null,"","",""]
[279,null,"","",""]
[280,null,"","",""]
[281,null,"","",""]
[282,null,"","",""]
[283,null,"","",""]
[284,null,"","",""]
[285,null,"","",""]
[286,null,"","",""]
[287,null,"","",""]
[288,null,"","",""]
[289,null,"","",""]
[290,null,"","",""]
[291,null,"","",""]
[292,null,"","",""]
[293,null,"","",""]
[294,null,"","",""]
[295,null,"","",""]
[296,null,"","",""]
[297,null,"","",""]
[298,null,"","",""]
[299,null,"","",""]
[300,null,"","",""]
[301,null,"","",""]
[302,null,"","",""]
[303,null,"","",""]
[304,null,"","",""]
[305,null,"","",""]
[306,null,"","",""]
[307,null,"","",""]
[308,null,"","",""]
[309,null,"","",""]
[310,null,"","",""]
[311,null,"","",""]
[312,null,"","",""]
[313,null,"","",""]
[314,null,"","",""]
[315,null,"","",""]
[316,null,"","",""]
[317,null,"","",""]
[318,null,"","",""]
[319,null,"","",""]
[320,null,"","",""]
[321,null,"","",""]
[322,null,"","",""]
[{"$f":"A330+1","v":323},null,"",{"$f":"IFERROR(INDIRECT(\"'\"&D$6&\"-\"&D$7&\"'!\"&D$8&$A331),\"\")","v":""},""]
[324,null,{"$f":"IFERROR(INDIRECT(\"'\"&D$6&\"-\"&D$7&\"'!\"&C$8&$A332),\"\")","v":""},"",{"$f":"IFERROR(INDIRECT(\"'\"&D$6&\"-\"&D$7&\"'!\"&E$8&$A332),\"\")","v":""}]
[325,null,"","",""]
[326,null,"","",""]
[327,null,"","",""]
[328,null,"","",""]
[329,null,"","",""]
[330,null,"","",""]
[331,null,"","",""]
[332,null,"","",""]
[333,null,"","",""]
[334,null,"","",""]
[335,null,"","",""]
[336,null,"","",""]
[337,null,"","",""]
[338,null,"","",""]
[339,null,"","",""]
[340,null,"","",""]
[341,null,"","",""]
[342,null,"","",""]
[343,null,"","",""]
[344,null,"","",""]
[345,null,"","",""]
[346,null,"","",""]
[347,null,"","",""]
[348,null,"","",""]
[349,null,"","",""]
[350,null,"","",""]
[351,null,"","",""]
[352,null,"","",""]
[353,null,"","",""]
[354,null,"","",""]
[355,null,"","",""]
[356,null,"","",""]
[357,null,"","",""]
[358,null,"","",""]
[359,null,"","",""]
[360,null,"","",""]
[361,null,"","",""]
[362,null,"","",""]
[363,null,"","",""]
[364,null,"","",""]
[365,null,"","",""]
[366,null,"","",""]
[367,null,"","",""]
[368,null,"","",""]
[369,null,"","",""]
[370,null,"","",""]
[371,null,"","",""]
[372,null,"","",""]
[373,null,"","",""]
[374,null,"","",""]
[375,null,"","",""]
[376,null,"","",""]
[377,null,"","",""]
[378,null,"","",""]
[379,null,"","",""]
[380,null,"","",""]
[381,null,"","",""]
[382,null,"","",""]
[383,null,"","",""]
[384,null,"","",""]
[385,null,"","",""]
[386,null,"","",""]
[{"$f":"A394+1","v":387},null,"",{"$f":"IFERROR(INDIRECT(\"'\"&D$6&\"-\"&D$7&\"'!\"&D$8&$A395),\"\")","v":""},""]
[388,null,{"$f":"IFERROR(INDIRECT(\"'\"&D$6&\"-\"&D$7&\"'!\"&C$8&$A396),\"\")","v":""},"",{"$f":"IFERROR(INDIRECT(\"'\"&D$6&\"-\"&D$7&\"'!\"&E$8&$A396),\"\")","v":""}]
[389,null,"","",""]
[390,null,"","",""]
[391,null,"","",""]
[392,null,"","",""]
[393,null,"","",""]
[394,null,"","",""]
[395,null,"","",""]
[396,null,"","",""]
[397,null,"","",""]
[398,null,"","",""]
[399,null,"","",""]
[400,null,"","",""]
[401,null,"","",""]
[402,null,"","",""]
[403,null,"","",""]
[404,null,"","",""]
[405,null,"","",""]
[406,null,"","",""]
[407,null,"","",""]
[408,null,"","",""]
[409,null,"","",""]
[410,null,"","",""]
[411,null,"","",""]
[412,null,"","",""]
[413,null,"","",""]
[414,null,"","",""]
[415,null,"","",""]
[416,null,"","",""]
[417,null,"","",""]
[418,null,"","",""]
[419,null,"","",""]
[420,null,"","",""]
[421,null,"","",""]
[422,null,"","",""]
[423,null,"","",""]
[424,null,"","",""]
[425,null,"","",""]
[426,null,"","",""]
[427,null,"","",""]
[428,null,"","",""]
[429,null,"","",""]
[430,null,"","",""]
[431,null,"","",""]
[432,null,"","",""]
[433,null,"","",""]
[434,null,"","",""]
[435,null,"","",""]
[436,null,"","",""]
[437,null,"","",""]
[438,null,"","",""]
[439,null,"","",""]
[440,null,"","",""]
[441,null,"","",""]
[442,null,"","",""]
[443,null,"","",""]
[444,null,"","",""]
[445,null,"","",""]
[446,null,"","",""]
[447,null,"","",""]
[448,null,"","",""]
[449,null,"","",""]
[450,null,"","",""]
[{"$f":"A458+1","v":451},null,"",{"$f":"IFERROR(INDIRECT(\"'\"&D$6&\"-\"&D$7&\"'!\"&D$8&$A459),\"\")","v":""},""]
[452,null,{"$f":"IFERROR(INDIRECT(\"'\"&D$6&\"-\"&D$7&\"'!\"&C$8&$A460),\"\")","v":""},"",{"$f":"IFERROR(INDIRECT(\"'\"&D$6&\"-\"&D$7&\"'!\"&E$8&$A460),\"\")","v":""}]
[453,null,"","",""]
[454,null,"","",""]
[455,null,"","",""]
[456,null,"","",""]
[457,null,"","",""]
[458,null,"","",""]
[459,null,"","",""]
[460,null,"","",""]
[461,null,"","",""]
[462,null,"","",""]
[463,null,"","",""]
[464,null,"","",""]
[465,null,"","",""]
[466,null,"","",""]
[467,null,"","",""]
[468,null,"","",""]
[469,null,"","",""]
[470,null,"","",""]
[471,null,"","",""]
[472,null,"","",""]
[473,null,"","",""]
[474,null,"","",""]
[475,null,"","",""]
[476,null,"","",""]
[477,null,"","",""]
[478,null,"","",""]
[479,null,"","",""]
[480,null,"","",""]
[481,null,"","",""]
[482,null,"","",""]
[483,null,"","",""]
[484,null,"","",""]
[485,null,"","",""]
[486,null,"","",""]
[487,null,"","",""]
[488,null,"","",""]
[489,null,"","",""]
[490,null,"","",""]
[491,null,"","",""]
[492,null,"","",""]
[493,null,"","",""]
[494,null,"","",""]
[495,null,"","",""]
[496,null,"","",""]
[497,null,"","",""]
[498,null,"","",""]
[499,null,"","",""]
[500,null,"","",""]
[501,null,"","",""]
[502,null,"","",""]
[503,null,"","",""]
[504,null,"","",""]
[505,null,"","",""]
[506,null,"","",""]
[507,null,"","",""]
[508,null,"","",""]
[509,null,"","",""]
[510,null,"","",""]
[511,null,"","",""]
[512,null,"","",""]
[513,null,"","",""]
[514,null,"","",""]
[{"$f":"A522+1","v":515},null,"",{"$f":"IFERROR(INDIRECT(\"'\"&D$6&\"-\"&D$7&\"'!\"&D$8&$A523),\"\")","v":""},""]
[516,null,{"$f":"IFERROR(INDIRECT(\"'\"&D$6&\"-\"&D$7&\"'!\"&C$8&$A524),\"\")","v":""},"",{"$f":"IFERROR(INDIRECT(\"'\"&D$6&\"-\"&D$7&\"'!\"&E$8&$A524),\"\")","v":""}]
[517,null,"","",""]
[518,null,"","",""]
[519,null,"","",""]
[520,null,"","",""]
[521,null,"","",""]
[522,null,"","",""]
[523,null,"","",""]
[524,null,"","",""]
[525,null,"","",""]
[526,null,"","",""]
[527,null,"","",""]
[528,null,"","",""]
[529,null,"","",""]
[530,null,"","",""]
[531,null,"","",""]
[532,null,"","",""]
[533,null,"","",""]
[534,null,"","",""]
[535,null,"","",""]
[536,null,"","",""]
[537,null,"","",""]
[538,null,"","",""]
[539,null,"","",""]
[540,null,"","",""]
[541,null,"","",""]
[542,null,"","",""]
[543,null,"","",""]
[544,null,"","",""]
[545,null,"","",""]
[546,null,"","",""]
[547,null,"","",""]
[548,null,"","",""]
[549,null,"","",""]
[550,null,"","",""]
[551,null,"","",""]
[552,null,"","",""]
[553,null,"","",""]
[554,null,"","",""]
[555,null,"","",""]
[556,null,"","",""]
[557,null,"","",""]

{"sheet":"OG_TITLE-Short","index":3,"n_rows":68,"n_cols":4,"rows_kept":68,"cut":false,"hidden":false,"merged":[]}
["URL","TagName","TagContent","SortingCount"]
["http://www.break.com/video/bus-crashes-67255","OG_TITLE","Bus Crashes",11]
["http://www.break.com/video/dog-for-dog-2501518","OG_TITLE","Dog for Dog",11]
["http://www.break.com/video/ghetto-air-67232","OG_TITLE","Ghetto Air",11]
["http://www.break.com/video/dog-vs-steps-2497837","OG_TITLE","Dog Vs Steps",12]
["http://www.break.com/video/man-vs-moose-2051504","OG_TITLE","Man Vs Moose",12]
["http://www.break.com/video/tears-of-joy-2493312","OG_TITLE","Tears Of Joy",12]
["http://www.break.com/video/the-trainer-1902223","OG_TITLE","The Trainer",12]
["http://www.break.com/video/2-girls-1-cup-395089","OG_TITLE","2 Girls 1 Cup",13]
["http://www.break.com/video/dog-door-fail-2327600","OG_TITLE","Dog Door Fail",13]
["http://www.break.com/video/hottie-beaver-670428","OG_TITLE","Hottie Beaver",13]
["http://www.break.com/video/cry-me-a-river-155440","OG_TITLE","Cry Me A River",14]
["http://www.break.com/video/post-it-mario-2351387","OG_TITLE","Post-it Mario",14]
["http://www.break.com/video/sheep-protest-2506795","OG_TITLE","Sheep Protest!",14]
["http://www.break.com/video/40-foot-shark-2298461","OG_TITLE","40 FOOT SHARK!",15]
["http://www.break.com/video/bridgesplosion-2425321","OG_TITLE","Bridgesplosion!",15]
["http://www.break.com/video/cat-machine-gun-1849224","OG_TITLE","Cat Machine Gun",15]
["http://www.break.com/video/cat-mimics-yawn-2506057","OG_TITLE","Cat Mimics Yawn",15]
["http://www.break.com/video/mirrors-trailer-545265","OG_TITLE","Mirrors Trailer",15]
["http://www.break.com/video/smell-my-finger-1422738","OG_TITLE","Smell My Finger",15]
["http://www.break.com/video/stupid-reporter-2062168","OG_TITLE","Stupid Reporter",15]
["http://www.break.com/video/cute-lazy-ferret-2436793","OG_TITLE","Cute lazy ferret",16]
["http://www.break.com/video/epic-snail-fail-2446193","OG_TITLE","Epic snail fail!",16]
["http://www.break.com/video/frankenstein-cat-2089909","OG_TITLE","Frankenstein Cat",16]
["http://www.break.com/video/paws-on-the-wall-2501290","OG_TITLE","Paws On The Wall",16]
["http://www.break.com/video/ugc/big-football-hit-345164","OG_TITLE","Big Football HIT",16]
["http://www.break.com/video/ugc/football-big-hit-348369","OG_TITLE","football big hit",16]
["http://www.break.com/video/ugc/miley-cyrus-dead-640665","OG_TITLE","Miley Cyrus Dead",16]
["http://www.break.com/video/ugc/nfl-hardest-hits-1680048","OG_TITLE","NFL HARDEST HITS",16]
["http://www.break.com/video/brutal-ski-injury-696554","OG_TITLE","Brutal Ski Injury",17]
["http://www.break.com/video/hot-chick-pranked-608700","OG_TITLE","Hot Chick Pranked",17]
["http://www.break.com/video/so-god-made-a-dog-2489985","OG_TITLE","So God Made A Dog",17]
["http://www.break.com/video/waterslide-stunts-447072","OG_TITLE","Waterslide Stunts",17]
["http://www.break.com/video/45-cute-dog-tricks-2495883","OG_TITLE","45 Cute Dog Tricks",18]
["http://www.break.com/video/best-cosplay-ever-2323721","OG_TITLE","Best Cosplay Ever?",18]
["http://www.break.com/video/cool-science-trick-2094166","OG_TITLE","Cool Science Trick",18]
["http://www.break.com/video/gta-4-carmageddon-1983889","OG_TITLE","GTA 4 Carmageddon!",18]
["http://www.break.com/video/insane-flexibility-863579","OG_TITLE","Insane Flexibility",18]
["http://www.break.com/video/no-pants-yes-beer-565219","OG_TITLE","No Pants, Yes Beer",18]
["http://www.break.com/video/people-are-awesome-1942501","OG_TITLE","People Are Awesome",18]
["http://www.break.com/video/scary-shark-attack-2414940","OG_TITLE","Scary shark attack",18]
["http://www.break.com/video/the-cutest-website-2081637","OG_TITLE","The Cutest Website",18]
["http://www.break.com/video/the-worst-job-ever-726252","OG_TITLE","The Worst Job Ever",18]
["http://www.break.com/video/ugc/miley-cyrus-hottie-583844","OG_TITLE","Miley cyrus HOTTIE",18]
["http://www.break.com/video/10-dumbasses-on-one-2383388","OG_TITLE","10 Dumbasses on One",19]
["http://www.break.com/video/3-on-1-street-brawl-2017132","OG_TITLE","3 On 1 Street Brawl",19]
["http://www.break.com/video/arm-wrestling-prank-2122264","OG_TITLE","Arm Wrestling Prank",19]
["http://www.break.com/video/biker-to-the-rescue-2436697","OG_TITLE","Biker To The Rescue",19]
["http://www.break.com/video/cat-burglar-busted-2510247","OG_TITLE","Cat Burglar Busted!",19]
["http://www.break.com/video/football-cheap-shot-186113","OG_TITLE","Football Cheap Shot",19]
["http://www.break.com/video/gamer-level-virgin-2372993","OG_TITLE","Gamer Level: Virgin",19]
["http://www.break.com/video/search-for-the-past-2088757","OG_TITLE","Search For The Past",19]
["http://www.break.com/video/the-shark-whisperer-2066338","OG_TITLE","The Shark Whisperer",19]
["http://www.break.com/video/ugc/kid-hit-by-football-186374","OG_TITLE","Kid Hit By Football",19]
["http://www.break.com/video/amazing-robot-dance-507504","OG_TITLE","Amazing Robot Dance!",20]
["http://www.break.com/video/backflip-beer-catch-1911227","OG_TITLE","Backflip Beer Catch",20]
["http://www.break.com/video/daring-doggy-dentist-2446295","OG_TITLE","Daring Doggy Dentist",20]
["http://www.break.com/video/deadliest-legs-ever-2375197","OG_TITLE","Deadliest Legs Ever?",20]
["http://www.break.com/video/dont-mess-with-moose-469086","OG_TITLE","Dont Mess With Moose",20]
["http://www.break.com/video/fat-cat-2320566","OG_TITLE","Fat Cat Needs A Home",20]
["http://www.break.com/video/how-not-to-steal-gas-2439073","OG_TITLE","How Not To Steal Gas",20]
["http://www.break.com/video/sex-ed-class-in-iraq-377893","OG_TITLE","Sex Ed Class in Iraq",20]
["http://www.break.com/video/shower-panties-prank-204069","OG_TITLE","Shower Panties Prank",20]
["http://www.break.com/video/the-self-hating-goat-2509130","OG_TITLE","The Self Hating Goat",20]
["http://www.break.com/video/trick-play-touchdown-1949254","OG_TITLE","Trick Play Touchdown",20]
["http://www.break.com/video/ugc/jk-puts-a-hit-on-345333","OG_TITLE","JK puts a hit on....",20]
["http://www.break.com/video/ugc/alice-307092","OG_TITLE","Alice",5]
["http://www.break.com/video/good-moms-raise-good-kids-2439068","OG_TITLE","Dear Mom",8]

{"sheet":"OG_TITLE-UTS","index":4,"n_rows":555,"n_cols":4,"rows_kept":555,"cut":false,"hidden":false,"merged":[]}
["URL","TagName","TagContent","SortingCount"]
["http://www.break.com/apps/","OG_TITLE","Apps | Plug-Ins | Widgets | Multi-Media Channels by Break.com",61]
["http://www.break.com/article/7-trainwreck-teen-stars-2510952","OG_TITLE","7 Trainwreck Teen Stars | Break.com",35]
["http://www.break.com/article/discuss-ben-affleck-is-the-new-batman-2508991","OG_TITLE","DISCUSS: Ben Affleck Is The New Batman | Break.com",50]
["http://www.break.com/article/kid-loses-out-on-date-with-kate-upton-gets-different-model-2446932","OG_TITLE","Lucky Kid Loses Upton As Prom Date, Gets Different Model | Break.com",68]
["http://www.break.com/article/miley-cyrus-performs-at-the-vmas-tries-too-hard-is-gross-2509950","OG_TITLE","Miley Cyrus Performs At The VMAs, Tries Too Hard, Is Gross | Break.com",70]
["http://www.break.com/article/sexy-video-of-female-israeli-soldiers-dancing-has-leaked-2461014","OG_TITLE","Sexy Video Of Female Israeli Soldiers Dancing Has Leaked | Break.com",68]
["http://www.break.com/article/the-daily-wrap-august-27th-2510840","OG_TITLE","The Daily Wrap: August 27th | Break.com",39]
["http://www.break.com/article/tlc-developing-show-about-this-guys-huge-nutsack-2500404","OG_TITLE","TLC Developing Show About This Guy's Huge Nutsack | Break.com",61]
["http://www.break.com/pictures/10-reasons-you-should-go-rock-climbing-2361169","OG_TITLE","10 Reasons You Should Go Rock Climbing | Rock Climbing: Hanging Out",67]
["http://www.break.com/pictures/12-awesome-military-machine-concepts-2432823","OG_TITLE","12 Awesome Military Machine Concepts | Military Machines: Howitzer",66]
["http://www.break.com/pictures/15-of-the-funniest-reactions-to-ben-affleck-as-batman-2509186","OG_TITLE","15 Of The Funniest Reactions To Ben Affleck As Batman | Batfleck: Filmdrunk",75]
["http://www.break.com/pictures/20-gangsta-dogs-1955633","OG_TITLE","20 Gangsta Dogs | Cash Money Dogg",33]
["http://www.break.com/pictures/break-picture-gallery-august-30th-2012-edition-2364019","OG_TITLE","Break Picture Gallery: August 30th, 2012 Edition | Man vs Jaws",62]
["http://www.break.com/pictures/break-picture-gallery-july-10th-2012-edition-2343796","OG_TITLE","Break Picture Gallery: July 10th, 2012 Edition | Vertical Planker",65]
["http://www.break.com/pictures/break-picture-gallery-may-9th-2012-edition-2325332","OG_TITLE","Break Picture Gallery: May 9th, 2012 Edition | Come at me, bro",62]
["http://www.break.com/pictures/dandg-4-at-the-club-2510452","OG_TITLE","Dogs And Women #4 | D&G 4: At The Club",38]
["http://www.break.com/pictures/dandg-4-duck-face-we-can-forgive-2510450","OG_TITLE","Dogs And Women #4 | D&G 4: Duck Face We Can Forgive",51]
["http://www.break.com/pictures/dandg-4-enjoying-the-air-2510441","OG_TITLE","Dogs And Women #4 | D&G 4: Enjoying The Air",43]
["http://www.break.com/pictures/dandg-4-getting-a-drink-2510454","OG_TITLE","Dogs And Women #4 | D&G 4: Getting A Drink",42]
["http://www.break.com/pictures/dandg-4-lots-to-hold-in-2510464","OG_TITLE","Dogs And Women #4 | D&G 4: Lots To Hold In",42]
["http://www.break.com/pictures/dandg-4-need-help-2510459","OG_TITLE","Dogs And Women #4 | D&G 4: Need Help?",37]
["http://www.break.com/pictures/dandg-4-office-worker-2510447","OG_TITLE","Dogs And Women #4 | D&G 4: Office Worker",40]
["http://www.break.com/pictures/dandg-4-party-gals-2510446","OG_TITLE","Dogs And Women #4 | D&G 4: Party Gals",37]
["http://www.break.com/pictures/dandg-4-punk-girl-2510458","OG_TITLE","Dogs And Women #4 | D&G 4: Punk Girl",36]
["http://www.break.com/pictures/dandg-4-skater-girl-2510448","OG_TITLE","Dogs And Women #4 | D&G 4: Skater Girl",38]
["http://www.break.com/pictures/dandg-4-tats-2510440","OG_TITLE","Dogs And Women #4 | D&G 4: Tats",31]
["http://www.break.com/pictures/dandg-4-tie-2510462","OG_TITLE","Dogs And Women #4 | D&G 4: Tie",30]
["http://www.break.com/pictures/dogs-and-women-4-2510434","OG_TITLE","Dogs And Women #4 | D&G 4: Big Baby",35]
["http://www.break.com/pictures/just-wtf-is-going-on-here-2510386","OG_TITLE","Just WTF Is Going On Here? | WTF: Big Bugs",42]
["http://www.break.com/pictures/ladies-stretching-is-a-good-thing-2368759","OG_TITLE","Ladies Stretching Is A Good Thing | Stretching: Ouch",52]
["http://www.break.com/pictures/people-who-make-all-humans-look-bad-2350576","OG_TITLE","People Who Make All Humans Look Bad | Humans Look Bad: Computer Problems",72]
["http://www.break.com/pictures/pics-of-82713-advertised-as-is-2510559","OG_TITLE","The Most Amazing Pics Of 8.27.13! | Pics Of 8.27.13: Advertised As Is",69]
["http://www.break.com/pictures/pics-of-82713-bad-jump-2510531","OG_TITLE","The Most Amazing Pics Of 8.27.13! | Pics Of 8.27.13: Bad Jump",61]
["http://www.break.com/pictures/pics-of-82713-bear-rafting-2510528","OG_TITLE","The Most Amazing Pics Of 8.27.13! | Pics Of 8.27.13: Bear Rafting",65]
["http://www.break.com/pictures/pics-of-82713-competiting-signs-2510561","OG_TITLE","The Most Amazing Pics Of 8.27.13! | Pics Of 8.27.13: Competiting Signs",70]
["http://www.break.com/pictures/pics-of-82713-granny-cage-2510540","OG_TITLE","The Most Amazing Pics Of 8.27.13! | Pics Of 8.27.13: Granny Cage",64]
["http://www.break.com/pictures/pics-of-82713-hell-help-2510536","OG_TITLE","The Most Amazing Pics Of 8.27.13! | Pics Of 8.27.13: He'll Help",63]
["http://www.break.com/pictures/pics-of-82713-horse-lick-2510537","OG_TITLE","The Most Amazing Pics Of 8.27.13! | Pics Of 8.27.13: Horse Lick",63]
["http://www.break.com/pictures/pics-of-82713-horse-working-the-pole-2510530","OG_TITLE","The Most Amazing Pics Of 8.27.13! | Pics Of 8.27.13: Horse Working The Pole",75]
["http://www.break.com/pictures/pics-of-82713-hot-dogs-or-legs-2510545","OG_TITLE","The Most Amazing Pics Of 8.27.13! | Pics Of 8.27.13: Hot Dogs Or Legs?",70]
["http://www.break.com/pictures/pics-of-82713-pizza-drink-2510542","OG_TITLE","The Most Amazing Pics Of 8.27.13! | Pics Of 8.27.13: Pizza Drink",64]
["http://www.break.com/pictures/pics-of-82713-pumping-the-keg-2510546","OG_TITLE","The Most Amazing Pics Of 8.27.13! | Pics Of 8.27.13: Pumping The Keg",68]
["http://www.break.com/pictures/pics-of-82713-recycling-is-hard-2510535","OG_TITLE","The Most Amazing Pics Of 8.27.13! | Pics Of 8.27.13: Recycling Is Hard",70]
["http://www.break.com/pictures/pics-of-82713-stay-down-2510543","OG_TITLE","The Most Amazing Pics Of 8.27.13! | Pics Of 8.27.13: STAY DOWN",62]
["http://www.break.com/pictures/pics-of-82713-what-a-view-2510555","OG_TITLE","The Most Amazing Pics Of 8.27.13! | Pics Of 8.27.13: What A View",64]
["http://www.break.com/pictures/pics-of-82813-bed-nerd-2511084","OG_TITLE","The Most Fantastic Pics Of 8.28.13! | Pics Of 8.28.13: Bed Nerd",63]
["http://www.break.com/pictures/pics-of-82813-best-loaf-ever-2511087","OG_TITLE","The Most Fantastic Pics Of 8.28.13! | Pics Of 8.28.13: Best Loaf Ever",69]
["http://www.break.com/pictures/pics-of-82813-boneless-2511086","OG_TITLE","The Most Fantastic Pics Of 8.28.13! | Pics Of 8.28.13: Boneless",63]
["http://www.break.com/pictures/pics-of-82813-boo-2511067","OG_TITLE","The Most Fantastic Pics Of 8.28.13! | Pics Of 8.28.13: Boo!",59]
["http://www.break.com/pictures/pics-of-82813-caught-it-2511090","OG_TITLE","The Most Fantastic Pics Of 8.28.13! | Pics Of 8.28.13: Caught It",64]
["http://www.break.com/pictures/pics-of-82813-evil-dead-underwear-2511065","OG_TITLE","The Most Fantastic Pics Of 8.28.13! | Pics Of 8.28.13: Evil Dead Underwear",74]
["http://www.break.com/pictures/pics-of-82813-exorcist-happy-meal-2511070","OG_TITLE","The Most Fantastic Pics Of 8.28.13! | Pics Of 8.28.13: Exorcist Happy Meal!",75]
["http://www.break.com/pictures/pics-of-82813-flowers-for-the-dirty-man-2511079","OG_TITLE","The Most Fantastic Pics Of 8.28.13! | Pics Of 8.28.13: Flowers For The Dirty Man",80]
["http://www.break.com/pictures/pics-of-82813-mass-smores-2511058","OG_TITLE","The Most Fantastic Pics Of 8.28.13! | Pics Of 8.28.13: Mass Smores",66]
["http://www.break.com/pictures/pics-of-82813-oh-steve-2511069","OG_TITLE","The Most Fantastic Pics Of 8.28.13! | Pics Of 8.28.13: Oh, Steve",64]
["http://www.break.com/pictures/stars-stripes-ladies-2341901","OG_TITLE","Stars, Stripes, Ladies | US Ladies – Hello, Lady",48]
["http://www.break.com/pictures/superheroes-have-changed-a-lot-through-the-years-2508012","OG_TITLE","Superheroes Have Changed A Lot Through The Years | Superhero Changes: Sly's Dredd",81]
["http://www.break.com/pictures/the-best-pics-ever-of-62513-2468950","OG_TITLE","The Best Pics Ever Of 6.25.13! | Best Pics Ever Of 6.25.13: Found Him!",70]
["http://www.break.com/pictures/the-grandest-pics-of-53013-2448769","OG_TITLE","The Grandest Pics Of 5.30.13! | Grandest Pics Of 5.30.13: Sorta Shower",70]
["http://www.break.com/pictures/the-greatest-pics-of-73013-2499414","OG_TITLE","The Greatest Pics Of 7.30.13! | Pics Of 7.30.13: Freedom!",57]
["http://www.break.com/pictures/the-most-amazing-pics-of-82713-2510524","OG_TITLE","The Most Amazing Pics Of 8.27.13! | Pics Of 8.27.13: Pizza Time",63]
["http://www.break.com/pictures/the-most-fantastic-pics-of-82813-2511051","OG_TITLE","The Most Fantastic Pics Of 8.28.13! | Pics Of 8.28.13: Ocean Splash",67]
["http://www.break.com/pictures/the-must-see-pics-of-72613-2497460","OG_TITLE","The Must-See Pics Of 7.26.13! | Pics Of 7.26.13: Delicious Death",64]
["http://www.break.com/pictures/the-webs-grandest-pics-of-31513-2424186","OG_TITLE","The Web's Grandest Pics Of 3.15.13! | Grandest Pics Of 3.15.13: Freddie And Vader",81]
["http://www.break.com/pictures/the-webs-greatest-pics-of-121412-2396285","OG_TITLE","The Web's Greatest Pics Of 12.14.12! | Greatest Pics Of 12.14.12: Great Prom Date",81]
["http://www.break.com/pictures/the-webs-greatest-pics-of-122112-2398408","OG_TITLE","The Web's Greatest Pics Of 12.21.12 | Greatest Of 12.21.12: Well, That's Presumptuous",85]
["http://www.break.com/pictures/the-webs-greatest-pics-of-22613-2419014","OG_TITLE","The Web's Greatest Pics Of 2.26.13! | Greatest Pics Of 2.26.13: Good Point",74]
["http://www.break.com/pictures/the-webs-most-awesome-pics-12-5-12-2393392","OG_TITLE","The Web's Most Awesome Pics: 12-5-12 | Most Awesome Pics 12-5: He Told Him!",75]
["http://www.break.com/pictures/the-webs-most-excellent-pics-of-42413-2436860","OG_TITLE","The Web's Most Excellent Pics Of 4.24.13! | Excellent Pics Of 4.24.13: Which Seat?",82]
["http://www.break.com/pictures/the-webs-most-fantastic-pics-of-12813-2410569","OG_TITLE","The Web's Most Fantastic Pics Of 1.28.13! | Fantastic Pics Of 1.28.13: In The Face!",83]
["http://www.break.com/pictures/the-webs-most-fantastic-pics-of-2813-2413881","OG_TITLE","The Web's Most Fantastic Pics Of 2.8.13! | Fantastic Pics Of 2.8.13: Heaven",75]
["http://www.break.com/pictures/the-webs-most-fantastic-pics-of-4313-2429889","OG_TITLE","The Web's Most Fantastic Pics Of 4.3.13! | Fantastic Pics Of 4.3.13: Excited Dog",80]
["http://www.break.com/pictures/the-webs-most-outstanding-pics-of-5713-2441166","OG_TITLE","The Web's Most Outstanding Pics Of 5.7.13! | Outstanding Pics Of 5.7.13: Literally",82]
["http://www.break.com/pictures/the-webs-most-super-cool-pics-of-1813-2403634","OG_TITLE","The Web's Most Super Cool Pics Of 1.8.13! | Cool Pics Of 1.8.13: Toilet Roses",77]
["http://www.break.com/pictures/the-webs-most-wonderful-pics-of-121112-2395186","OG_TITLE","The Web's Most Wonderful Pics Of 12.11.12 | Wonderful Pics of 12.11.12: Turtle Hunters",86]
["http://www.break.com/pictures/wait-something-isnt-right-with-these-pics-2409967","OG_TITLE","Wait, Something Isn't Right With These Pics... | Not Right: Icing Issues",72]
["http://www.break.com/pictures/why-are-these-13-things-way-up-there-2510984","OG_TITLE","Why Are These 13 Things Way Up There? | Way Up There: Monitor",61]
["http://www.break.com/pictures/wtf-inside-a-dude-2510389","OG_TITLE","Just WTF Is Going On Here? | WTF: Inside A Dude",47]
["http://www.break.com/pictures/wtf-wheres-that-guy-2510390","OG_TITLE","Just WTF Is Going On Here? | WTF: Where's That Guy?",51]
["http://www.break.com/pictures/you-must-see-the-pics-of-82613-2509810","OG_TITLE","You Must See The Pics Of 8.26.13! | Pics Of 8.26.13: Glorious Printing",70]
["http://www.break.com/playlist/breaks-favorite-partying-old-people-2370709","OG_TITLE","Break's Favorite Partying Old People: Grandma And Grandpa Decide To Ghost Ride | Break.com",90]
["http://www.break.com/playlist/the-weeks-coolest-break-videos-are-here-2340630","OG_TITLE","The Week's Coolest Break Videos Are Here!: Teacher Ends Fight Like a Boss | Break.com",85]
["http://www.break.com/video/10-dumbasses-on-one-2383388","OG_TITLE","10 Dumbasses on One",19]
["http://www.break.com/video/2-girls-1-cup-395089","OG_TITLE","2 Girls 1 Cup",13]
["http://www.break.com/video/3-on-1-street-brawl-2017132","OG_TITLE","3 On 1 Street Brawl",19]
["http://www.break.com/video/3-year-old-twins-beat-just-dance-ii-on-wii-2087310","OG_TITLE","3 Year Old Twins Beat Just Dance II On Wii",42]
["http://www.break.com/video/40-foot-shark-2298461","OG_TITLE","40 FOOT SHARK!",15]
["http://www.break.com/video/45-cute-dog-tricks-2495883","OG_TITLE","45 Cute Dog Tricks",18]
["http://www.break.com/video/8-month-old-baby-learns-to-ski-2441165","OG_TITLE","8-Month-Old Baby Learns To Ski",30]
["http://www.break.com/video/84-year-old-video-game-playing-grandpa-is-cooler-than-yours-2411778","OG_TITLE","84-Year-Old Video Game Playing Grandpa Is Cooler Than Yours",59]
["http://www.break.com/video/a-cat-a-bag-a-wall-a-hilarious-trauma-2505003","OG_TITLE","A Cat, A Bag, A Wall, A Hilarious Trauma",40]
["http://www.break.com/video/a-longboard-a-girl-a-rope-and-an-accident-2503622","OG_TITLE","A Longboard, A Girl, A Rope, And An Accident",44]
["http://www.break.com/video/a-real-working-transfomer-2325614","OG_TITLE","A Real, Working Transfomer",26]
["http://www.break.com/video/a-tear-inducing-leg-cramp-2343429","OG_TITLE","A Tear-Inducing Leg Cramp",25]
["http://www.break.com/video/a-tube-of-diaper-cream-covers-a-lot-of-baby-2495380","OG_TITLE","A Tube Of Diaper Cream Covers A Lot Of Baby",43]
["http://www.break.com/video/abercrombie-and-fitch-the-homeless-2444230","OG_TITLE","Abercrombie And Fitch The Homeless",34]
["http://www.break.com/video/accidents-nope-blanka-2510874","OG_TITLE","Accidents? Nope, Blanka",23]
["http://www.break.com/video/advice-on-life-from-steve-jobs-2510899","OG_TITLE","Advice On Life From Steve Jobs",30]
["http://www.break.com/video/amazing-dolphin-pod-footage-620932","OG_TITLE","Amazing Dolphin Pod Footage",27]
["http://www.break.com/video/amazing-flash-flood-in-southern-utah-2495424","OG_TITLE","Amazing Flash Flood In Southern Utah",36]
["http://www.break.com/video/amazing-in-flight-footage-2510339","OG_TITLE","Amazing In Flight Footage Of Aircraft",37]
["http://www.break.com/video/amazing-mind-reader-reveals-his-secret-2372815","OG_TITLE","Amazing Mind Reader Reveals His Secret",38]
["http://www.break.com/video/amazing-robot-dance-507504","OG_TITLE","Amazing Robot Dance!",20]
["http://www.break.com/video/amazingly-painful-crashes-on-skiis-616914","OG_TITLE","Amazingly Painful Crashes on Skiis",34]
["http://www.break.com/video/angry-hot-chick-destroys-boyfriends-ps3-1614012","OG_TITLE","Angry Hot Chick Destroys Boyfriends PS3",39]
["http://www.break.com/video/another-horrible-woman-driver-206451","OG_TITLE","Another Horrible Woman Driver",29]
["http://www.break.com/video/antoinette-tuff-the-woman-who-prevented-a-school-shooting-2508848","OG_TITLE","Antoinette Tuff: The Woman Who Prevented A School Shooting",58]
["http://www.break.com/video/aqua-display-top-2510885","OG_TITLE","Immersive Water Display System",30]
["http://www.break.com/video/aquadog-rescues-his-friends-2378014","OG_TITLE","Aquadog Rescues His Friends",27]
["http://www.break.com/video/arkansas-inmate-escapes-through-window-2499920","OG_TITLE","Arkansas Inmate Escapes Through Window",38]
["http://www.break.com/video/arm-wrestling-prank-2122264","OG_TITLE","Arm Wrestling Prank",19]
["http://www.break.com/video/ashton-kutcher-forces-you-to-like-him-2504999","OG_TITLE","Ashton Kutcher Forces You To Like Him",37]
["http://www.break.com/video/astounding-subway-beatboxer-performs-ozzys-crazy-train-2447343","OG_TITLE","Astounding Subway Beatboxer Performs Ozzy's \"Crazy Train\"",57]
["http://www.break.com/video/awesome-multi-target-missile-defense-system-2472415","OG_TITLE","Awesome Multi-Target Missile Defense System",43]
["http://www.break.com/video/awesome-soccer-beatdowns-652540","OG_TITLE","Awesome Soccer Beatdowns",24]
["http://www.break.com/video/awesome-street-performer-s-homemade-percussion-kit-2266597","OG_TITLE","Awesome Street Performer's Homemade Percussion Kit",50]
["http://www.break.com/video/baby-laughs-hysterically-at-animal-videos-2503653","OG_TITLE","You’ll Never Find An Animal Vid As Funny As This Kid Does",57]
["http://www.break.com/video/backflip-beer-catch-1911227","OG_TITLE","Backflip Beer Catch",20]
["http://www.break.com/video/bad-landing-breaks-kids-arm-2508333","OG_TITLE","Bad Landing Breaks Kid's Arm",28]
["http://www.break.com/video/bald-eagle-snatches-fish-from-osprey-687867","OG_TITLE","Bald Eagle Snatches Fish From Osprey",36]
["http://www.break.com/video/base-jumpers-parachute-doesnt-work-somehow-survives-2445917","OG_TITLE","Base Jumper's Parachute Doesn't Work, Somehow Survives",54]
["http://www.break.com/video/baseball-sized-hail-in-germany-2499778","OG_TITLE","Baseball Sized Hail In Germany",30]
["http://www.break.com/video/bathroom-hair-flip-fail-1935308","OG_TITLE","Bathroom Hair Flip Fail",23]
["http://www.break.com/video/behind-the-lights-season-2-built-ford-tough-2505794","OG_TITLE","Behind the Lights Season 2 – Built Ford Tough",45]
["http://www.break.com/video/ben-affleck-as-batman-boston-fans-react-2510900","OG_TITLE","Ben Affleck as Batman? Boston Fans React!",41]
["http://www.break.com/video/best-car-thru-mini-mart-ever-432177","OG_TITLE","Best Car Thru Mini Mart Ever",28]
["http://www.break.com/video/best-cosplay-ever-2323721","OG_TITLE","Best Cosplay Ever?",18]
["http://www.break.com/video/best-one-punch-knockout-ever-509863","OG_TITLE","Best One Punch Knockout Ever",28]
["http://www.break.com/video/best-webcam-break-up-ever-563006","OG_TITLE","Best Webcam Break-Up Ever",25]
["http://www.break.com/video/best-webcam-break-up-ever-575828","OG_TITLE","Best Webcam Break Up Ever",25]
["http://www.break.com/video/big-dude-gets-knocked-out-1864094","OG_TITLE","Big Dude Gets Knocked Out",25]
["http://www.break.com/video/big-girls-workout-disaster-2402253","OG_TITLE","Big Girl's Workout Disaster",27]
["http://www.break.com/video/big-guy-cries-to-stop-fight-566873","OG_TITLE","Big Guy Cries To Stop Fight",27]
["http://www.break.com/video/biggest-slip-n-slide-loop-dominated-2504372","OG_TITLE","Biggest Slip N' Slide Loop Dominated",36]
["http://www.break.com/video/biker-skids-down-dirt-ramp-on-his-face-1868407","OG_TITLE","Biker Skids Down Dirt Ramp On His Face",38]
["http://www.break.com/video/biker-to-the-rescue-2436697","OG_TITLE","Biker To The Rescue",19]
["http://www.break.com/video/bird-backflips-away-from-certain-doom-2446937","OG_TITLE","Bird Backflips Away From Certain Doom",37]
["http://www.break.com/video/bird-finds-epic-perch-2510471","OG_TITLE","Bird Finds Epic Perch",21]
["http://www.break.com/video/bird-strikes-fish-in-water-667383","OG_TITLE","Bird Strikes Fish In Water",26]
["http://www.break.com/video/blocking-punches-you-re-doing-it-wrong-2444815","OG_TITLE","Blocking Punches: You’re Doing it Wrong",39]
["http://www.break.com/video/blonde-gets-flour-pranked-in-bubble-bath-1735174","OG_TITLE","Blonde Gets Flour Pranked in Bubble Bath",40]
["http://www.break.com/video/blue-marlin-nearly-impales-fisherman-2510256","OG_TITLE","Blue Marlin Nearly Impales Fisherman",36]
["http://www.break.com/video/bmx-front-flip-off-roof-ends-painfully-662832","OG_TITLE","BMX Front Flip Off Roof Ends Painfully",38]
["http://www.break.com/video/bonehead-car-flip-fail-becomes-unintentional-win-2453725","OG_TITLE","Bonehead Car Flip Fail Becomes Unintentional Win",48]
["http://www.break.com/video/break-after-dark-sexy-farming-2448294","OG_TITLE","Break After Dark: Sexy Farming",30]
["http://www.break.com/video/break-exclusive-new-gi-joe-has-amazing-ninjas-2409212","OG_TITLE","Break Exclusive: New G.I. Joe Has Amazing Ninjas",48]
["http://www.break.com/video/break-is-thankful-for-explosions-2389873","OG_TITLE","Break Is Thankful For Explosions",32]
["http://www.break.com/video/breaking-bad-final-season-trailer-is-poetry-2499923","OG_TITLE","‘Breaking Bad’ Final Season Trailer Is Poetry",45]
["http://www.break.com/video/breaking-bads-aaron-paul-on-price-is-right-2505743","OG_TITLE","Breaking Bad's Aaron Paul On Price Is Right",43]
["http://www.break.com/video/bride-can-t-stop-laughing-during-vows-1170011","OG_TITLE","Bride Can't Stop Laughing During Vows",37]
["http://www.break.com/video/bridgesplosion-2425321","OG_TITLE","Bridgesplosion!",15]
["http://www.break.com/video/brutal-crash-between-skiers-636459","OG_TITLE","Brutal Crash Between Skiers",27]
["http://www.break.com/video/brutal-drift-right-into-a-truck-2508301","OG_TITLE","Brutal Drift Right Into A Truck",31]
["http://www.break.com/video/brutal-ski-injury-696554","OG_TITLE","Brutal Ski Injury",17]
["http://www.break.com/video/brutal-street-luge-crash-sends-guy-flying-697220","OG_TITLE","Brutal Street Luge Crash Sends Guy Flying",41]
["http://www.break.com/video/bully-gets-beat-up-by-skater-2347444","OG_TITLE","Bully Gets Beat Up By Skater",28]
["http://www.break.com/video/bus-crashes-67255","OG_TITLE","Bus Crashes",11]
["http://www.break.com/video/can-you-spot-the-problem-here-2444571","OG_TITLE","Can You Spot The Problem Here?",30]
["http://www.break.com/video/capoeira-demo-goes-very-wrong-672364","OG_TITLE","Capoeira Demo Goes Very Wrong",29]
["http://www.break.com/video/car-gets-stuck-in-a-landslide-2499716","OG_TITLE","Car Gets Stuck In A Landslide",29]
["http://www.break.com/video/cat-and-dog-become-instant-buddies-2492612","OG_TITLE","Cat And Dog Become Instant Buddies",34]
["http://www.break.com/video/cat-and-dog-love-to-cuddle-2493843","OG_TITLE","Cat And Dog Love To Cuddle",26]
["http://www.break.com/video/cat-boxing-with-boxing-announcer-234131","OG_TITLE","Cat Boxing With Boxing Announcer",32]
["http://www.break.com/video/cat-burglar-busted-2510247","OG_TITLE","Cat Burglar Busted!",19]
["http://www.break.com/video/cat-machine-gun-1849224","OG_TITLE","Cat Machine Gun",15]
["http://www.break.com/video/cat-mimics-yawn-2506057","OG_TITLE","Cat Mimics Yawn",15]
["http://www.break.com/video/cat-turns-failed-stunt-into-a-win-2503625","OG_TITLE","Cat Turns Failed Stunt Into A Win",33]
["http://www.break.com/video/chick-plays-hot-keys-prank-on-boyfriend-2340208","OG_TITLE","Chick Plays Hot Keys Prank On Boyfriend",39]
["http://www.break.com/video/chick-s-graduation-faceplant-2071875","OG_TITLE","Chick's Graduation Faceplant",28]
["http://www.break.com/video/christina-model-squeezing-her-boobs-698852","OG_TITLE","Christina Model Squeezing Her Boobs",35]
["http://www.break.com/video/chubby-biker-vs-steep-hill-2503656","OG_TITLE","Chubby Biker Vs Steep Hill",26]
["http://www.break.com/video/chubby-bully-is-a-bad-fighter-2448612","OG_TITLE","Chubby Bully Is A Bad Fighter",29]
["http://www.break.com/video/chubby-kid-bodyslams-bully-2023531","OG_TITLE","Chubby Kid Bodyslams Bully",26]
["http://www.break.com/video/chubby-kid-teaches-skateboard-ollies-824717","OG_TITLE","Chubby Kid Teaches Skateboard Ollies",36]
["http://www.break.com/video/circus-lions-turn-on-the-trainers-2508780","OG_TITLE","Circus Lions Turn On The Trainers",33]
["http://www.break.com/video/cnns-bomb-metaphor-explodes-in-their-faces-2436809","OG_TITLE","CNN's Bomb Metaphor Explodes In Their Faces",43]
["http://www.break.com/video/cockpit-view-of-idaho-plane-crash-2356527","OG_TITLE","Cockpit View Of Idaho Plane Crash",34]
["http://www.break.com/video/college-pranks-worst-backfire-ever-201175","OG_TITLE","College Pranks Worst Backfire Ever",34]
["http://www.break.com/video/confused-tortoise-humping-boot-682136","OG_TITLE","Confused Tortoise Humping Boot",30]
["http://www.break.com/video/cool-beatbox-and-random-sound-montage-1765730","OG_TITLE","Cool Beatbox and Random Sound Montage",37]
["http://www.break.com/video/cool-dj-chick-throws-down-on-the-wheels-of-steel-2447012","OG_TITLE","Cool DJ Chick Throws Down On The Wheels Of Steel",48]
["http://www.break.com/video/cool-flip-from-swing-onto-bike-1850724","OG_TITLE","Cool Flip From Swing Onto Bike",30]
["http://www.break.com/video/cool-over-the-back-td-pass-1502557","OG_TITLE","Cool Over the Back TD Pass",26]
["http://www.break.com/video/cool-science-trick-2094166","OG_TITLE","Cool Science Trick",18]
["http://www.break.com/video/cop-lies-about-red-light-2500416","OG_TITLE","Cop Lies About Red Light",24]
["http://www.break.com/video/cops-recover-a-stolen-truck-96231","OG_TITLE","Cops Recover a Stolen Truck",27]
["http://www.break.com/video/corgi-goes-down-the-stairs-2445201","OG_TITLE","Corgi goes down the stairs",26]
["http://www.break.com/video/corvette-drag-race-starts-bad-2340230","OG_TITLE","Corvette Drag Race Starts Bad",29]
["http://www.break.com/video/couple-kids-brawl-after-school-357727","OG_TITLE","Couple Kids Brawl After School",30]
["http://www.break.com/video/craziest-gymnast-you-ll-see-all-day-2436736","OG_TITLE","Craziest Gymnast You’ll See All Day",35]
["http://www.break.com/video/crazy-exercise-ball-trick-746000","OG_TITLE","Crazy Exercise Ball Trick",25]
["http://www.break.com/video/crazy-girlfriend-revenge-2269253","OG_TITLE","Crazy Girlfriend Revenge",24]
["http://www.break.com/video/crazy-jet-pilots-flying-super-low-658408","OG_TITLE","Crazy Jet Pilots Flying Super Low",33]
["http://www.break.com/video/crazy-old-dj-rocks-the-party-1880517","OG_TITLE","Crazy Old DJ Rocks The Party",28]
["http://www.break.com/video/creepy-asian-clown-urinal-463779","OG_TITLE","Creepy Asian Clown Urinal",25]
["http://www.break.com/video/creepy-dog-has-scary-bark-605538","OG_TITLE","Creepy Dog Has Scary Bark",25]
["http://www.break.com/video/cry-me-a-river-155440","OG_TITLE","Cry Me A River",14]
["http://www.break.com/video/cute-baby-laughing-at-juggling-dad-2507531","OG_TITLE","Cute Baby Laughing At Juggling Dad",34]
["http://www.break.com/video/cute-girl-shaves-head-after-losing-bet-1402621","OG_TITLE","Cute Girl Shaves Head after Losing Bet",38]
["http://www.break.com/video/cute-girl-vs-skinny-jeans-2242469","OG_TITLE","Cute Girl Vs. Skinny Jeans",26]
["http://www.break.com/video/cute-lazy-ferret-2436793","OG_TITLE","Cute lazy ferret",16]
["http://www.break.com/video/cute-persian-kitten-trying-to-talk-2495913","OG_TITLE","Cute Persian Kitten Trying To Talk",34]
["http://www.break.com/video/cute-puppies-attack-cat-2507973","OG_TITLE","Cute Puppies Attack Cat",23]
["http://www.break.com/video/cyclist-gives-a-street-sign-the-face-treatment-2509690","OG_TITLE","Cyclist Gives A Street Sign The Face Treatment",46]
["http://www.break.com/video/dad-enters-wrestling-ring-and-sends-kid-flying-226591","OG_TITLE","Dad Enters Wrestling Ring And Sends Kid Flying",46]
["http://www.break.com/video/daring-doggy-dentist-2446295","OG_TITLE","Daring Doggy Dentist",20]
["http://www.break.com/video/david-blaine-catches-bullet-in-his-mouth-2500773","OG_TITLE","David Blaine Catches Bullet In His Mouth",40]
["http://www.break.com/video/david-o-russells-american-hustle-2500328","OG_TITLE","David O. Russell's 'American Hustle'",36]
["http://www.break.com/video/deadliest-legs-ever-2375197","OG_TITLE","Deadliest Legs Ever?",20]
["http://www.break.com/video/deadly-weapons-pulled-out-in-gang-fight-2448613","OG_TITLE","Deadly Weapons Pulled Out In Gang Fight",39]
["http://www.break.com/video/dewey-beach-4th-of-july-madness-568376","OG_TITLE","Dewey Beach 4th of July Madness",31]
["http://www.break.com/video/dinnertime-dancing-dog-twins-2501409","OG_TITLE","Dinnertime Dancing Dog Twins",28]
["http://www.break.com/video/disappearing-man-on-the-beach-prank-2507940","OG_TITLE","Disappearing Man On The Beach Prank",35]
["http://www.break.com/video/dog-attack-may-be-the-worst-news-graphic-ever-2472095","OG_TITLE","Dog Attack May Be The Worst News Graphic Ever",45]
["http://www.break.com/video/dog-bites-helicopter-helicopter-bites-back-2463593","OG_TITLE","Dog Bites Helicopter, Helicopter Bites Back",43]
["http://www.break.com/video/dog-cheats-at-the-track-292133","OG_TITLE","Dog Cheats At The Track",23]
["http://www.break.com/video/dog-dominates-skateboard-park-2505467","OG_TITLE","Dog Dominates Skateboard Park",29]
["http://www.break.com/video/dog-door-fail-2327600","OG_TITLE","Dog Door Fail",13]
["http://www.break.com/video/dog-fooled-by-running-water-2505745","OG_TITLE","Dog Fooled By Running Water",27]
["http://www.break.com/video/dog-for-dog-2501518","OG_TITLE","Dog for Dog",11]
["http://www.break.com/video/dog-vs-steps-2497837","OG_TITLE","Dog Vs Steps",12]
["http://www.break.com/video/don-t-bully-the-ninja-kid-2448110","OG_TITLE","Don’t Bully The Ninja Kid",25]
["http://www.break.com/video/dont-mess-with-moose-469086","OG_TITLE","Dont Mess With Moose",20]
["http://www.break.com/video/drummer-dean-zimmer-is-an-inspiration-2509205","OG_TITLE","Drummer Dean Zimmer Is An Inspiration",37]
["http://www.break.com/video/dude-s-wedding-dance-moves-are-dangerous-2290254","OG_TITLE","Dude's Wedding Dance Moves Are Dangerous",40]
["http://www.break.com/video/dude-slaps-beyonces-butt-in-concert-2448234","OG_TITLE","Dude Slaps Beyonce's Butt In Concert (Multiple Angles)",54]
["http://www.break.com/video/dumb-driver-destroys-music-store-693245","OG_TITLE","Dumb Driver Destroys Music Store",32]
["http://www.break.com/video/dutch-reporter-turns-quad-fail-into-win-2452050","OG_TITLE","Dutch Reporter Turns Quad Fail Into Win",39]
["http://www.break.com/video/eating-metal-with-cereal-yum-and-gross-2406757","OG_TITLE","Eating Metal With Cereal? Yum! And Gross.",41]
["http://www.break.com/video/elderly-couple-fight-two-crazy-girls-1473789","OG_TITLE","Elderly Couple Fight Two Crazy Girls",36]
["http://www.break.com/video/epic-snail-fail-2446193","OG_TITLE","Epic snail fail!",16]
["http://www.break.com/video/ever-wondered-how-a-hot-dog-is-made-2444583","OG_TITLE","Have You Ever Wondered How A Hot Dog Is Made?",45]
["http://www.break.com/video/ex-girlfriend-turns-into-a-whale-2462961","OG_TITLE","Ex-Girlfriend Turns Into A Whale",32]
["http://www.break.com/video/exercise-instructor-farts-on-air-144284","OG_TITLE","Exercise Instructor Farts On Air",32]
["http://www.break.com/video/family-of-ducks-cause-four-accidents-2448610","OG_TITLE","Family Of Ducks Cause Four Accidents",36]
["http://www.break.com/video/fat-cat-2320566","OG_TITLE","Fat Cat Needs A Home",20]
["http://www.break.com/video/field-reporter-lindsay-nadrich-drops-f-bomb-on-air-2468037","OG_TITLE","Fox News Reporter Drops F-Bomb On Air",37]
["http://www.break.com/video/fight-in-taco-restaurant-2125105","OG_TITLE","Fight In Taco Restaurant",24]
["http://www.break.com/video/first-1620-on-rollerblades-2510973","OG_TITLE","First 1620 On Rollerblades",26]
["http://www.break.com/video/first-person-rock-climbing-fall-2445852","OG_TITLE","First Person Rock Climbing Fall",31]
["http://www.break.com/video/football-cheap-shot-186113","OG_TITLE","Football Cheap Shot",19]
["http://www.break.com/video/forgetting-sarah-marshall-r-rated-trailer-488128","OG_TITLE","Forgetting Sarah Marshall R-Rated Trailer",41]
["http://www.break.com/video/foul-mouthed-mom-at-hockey-game-282035","OG_TITLE","Foul Mouthed Mom At Hockey Game",31]
["http://www.break.com/video/frankenstein-cat-2089909","OG_TITLE","Frankenstein Cat",16]
["http://www.break.com/video/freestyle-sledding-flips-637670","OG_TITLE","Freestyle Sledding Flips",24]
["http://www.break.com/video/french-street-fight-sucker-punch-609785","OG_TITLE","French Street Fight Sucker Punch",32]
["http://www.break.com/video/frightening-facts-about-sinkholes-2506054","OG_TITLE","Frightening Facts About Sinkholes",33]
["http://www.break.com/video/funny-motocross-front-flip-faceplant-1692560","OG_TITLE","Funny Motocross Front Flip Faceplant",36]
["http://www.break.com/video/gamer-level-virgin-2372993","OG_TITLE","Gamer Level: Virgin",19]
["http://www.break.com/video/get-lich-or-die-tryin-1710376","OG_TITLE","Get Lich or Die Tryin",21]
["http://www.break.com/video/ghetto-air-67232","OG_TITLE","Ghetto Air",11]
["http://www.break.com/video/girl-dumped-live-on-the-radio-206119","OG_TITLE","Girl Dumped Live On The Radio",29]
["http://www.break.com/video/girl-shows-off-amazing-talent-gets-amazing-reactions-2445951","OG_TITLE","Girl Shows Off Amazing Talent, Gets Amazing Reactions",53]
["http://www.break.com/video/girlfriend-pays-back-for-pie-prank-684760","OG_TITLE","Girlfriend Pays Back For Pie Prank",34]
["http://www.break.com/video/girlfriend-valentines-day-surprise-1732401","OG_TITLE","Girlfriend Valentines Day Surprise",34]
["http://www.break.com/video/go-home-moose-you-re-drunk-2448572","OG_TITLE","Go Home Moose, You’re Drunk",27]
["http://www.break.com/video/go-kart-stunt-ends-painfully-1975348","OG_TITLE","Go Kart Stunt Ends Painfully",28]
["http://www.break.com/video/goldeneye-007-multiplayer-maps-1927681","OG_TITLE","GoldenEye 007 -- Multiplayer Maps",33]
["http://www.break.com/video/good-moms-raise-good-kids-2439068","OG_TITLE","Dear Mom",8]
["http://www.break.com/video/gramps-rocks-out-to-insomnia-on-the-spoons-2388528","OG_TITLE","Gramps Rocks Out To Insomnia On The Spoons",42]
["http://www.break.com/video/grand-theft-auto-5-online-gameplay-looks-unbelievable-2506124","OG_TITLE","Grand Theft Auto 5 Online Gameplay Looks Unbelievable",53]
["http://www.break.com/video/grand-theft-auto-iv-piano-car-2505726","OG_TITLE","Grand Theft Auto IV Piano Car",29]
["http://www.break.com/video/granny-tries-to-stop-chinese-microsoft-surface-event-2382893","OG_TITLE","Granny Tries To Stop Chinese Microsoft Surface Event",52]
["http://www.break.com/video/great-white-gets-his-head-into-cage-2426340","OG_TITLE","Nature's Fury: Great White Shark Gets His Head Into Cage",56]
["http://www.break.com/video/great-white-shark-swims-up-to-surfer-1899359","OG_TITLE","Great White Shark Swims Up To Surfer",36]
["http://www.break.com/video/greatest-game-of-horse-ever-2510234","OG_TITLE","Greatest Game Of HORSE Ever",27]
["http://www.break.com/video/gross-cyst-video-two-girls-one-cyst-832298","OG_TITLE","Gross Cyst Video - Two Girls One Cyst",37]
["http://www.break.com/video/gta-4-carmageddon-1983889","OG_TITLE","GTA 4 Carmageddon!",18]
["http://www.break.com/video/guess-where-this-robbery-went-wrong-2508724","OG_TITLE","Guess Where This Robbery Went Wrong",35]
["http://www.break.com/video/guy-busts-windshield-out-of-car-with-sword-1925297","OG_TITLE","Guy Busts Windshield Out of Car With Sword",43]
["http://www.break.com/video/guy-buttdials-pals-while-getting-busy-with-girl-1922984","OG_TITLE","Guy Buttdials Pals While Getting Busy With Girl",47]
["http://www.break.com/video/guy-fails-at-the-rope-swing-2510889","OG_TITLE","Guy Fails At The Rope Swing",27]
["http://www.break.com/video/guy-flails-and-screams-on-live-talk-show-690911","OG_TITLE","Guy Flails and Screams on Live Talk Show",40]
["http://www.break.com/video/guy-hits-parked-car-and-smashes-storefront-680821","OG_TITLE","Guy Hits Parked Car and Smashes Storefront",42]
["http://www.break.com/video/guy-loses-165-lbs-in-a-year-2431072","OG_TITLE","Guy Loses 165 Lbs In A Year",27]
["http://www.break.com/video/guy-loses-pants-during-wedding-1254495","OG_TITLE","Guy Loses Pants During Wedding",30]
["http://www.break.com/video/guy-races-bike-down-1000-stairs-2327604","OG_TITLE","Guy Races Bike Down 1,000 Stairs",32]
["http://www.break.com/video/half-cat-half-prairie-dog-2509694","OG_TITLE","Half Cat, Half Prairie Dog",26]
["http://www.break.com/video/half-court-shot-wins-tuition-2507979","OG_TITLE","Half Court Shot Wins Tuition",28]
["http://www.break.com/video/halo-takes-over-the-world-372081","OG_TITLE","Halo Takes Over The World",25]
["http://www.break.com/video/handstand-on-chair-goes-wrong-2505062","OG_TITLE","Handstand On Chair Goes Wrong",29]
["http://www.break.com/video/handwalking-over-unsuspecting-beach-bums-prank-2409349","OG_TITLE","Handwalking Over Unsuspecting Beach Bums Prank",46]
["http://www.break.com/video/hank-and-marie-watch-the-video-music-awards-2510918","OG_TITLE","Hank and Marie Watch The Video Music Awards",43]
["http://www.break.com/video/hardest-pop-warner-football-hit-ever-1476315","OG_TITLE","Hardest Pop Warner Football Hit Ever",36]
["http://www.break.com/video/he-puts-it-in-the-wrong-hole-1351992","OG_TITLE","He Puts It in the Wrong Hole",28]
["http://www.break.com/video/heisenberg-hates-hemorrhoids-2508829","OG_TITLE","Heisenberg Hates Hemorrhoids",28]
["http://www.break.com/video/hero-saves-dying-dog-with-cpr-2497220","OG_TITLE","Hero Saves Dying Dog With CPR",29]
["http://www.break.com/video/high-jump-level-kenyan-2448112","OG_TITLE","High Jump Level: Kenyan",23]
["http://www.break.com/video/high-school-football-player-hurdles-defender-181429","OG_TITLE","High School Football Player Hurdles Defender",44]
["http://www.break.com/video/high-speed-motorcycle-wipe-out-86605","OG_TITLE","High Speed Motorcycle Wipe Out",30]
["http://www.break.com/video/highway-to-hell-cover-2510915","OG_TITLE","Highway To Hell Cover",21]
["http://www.break.com/video/hilarious-electrical-switch-prank-2507913","OG_TITLE","Hilarious Electrical Switch Prank",33]
["http://www.break.com/video/hilarious-punching-failure-at-party-2290871","OG_TITLE","Hilarious Punching Failure at Party",35]
["http://www.break.com/video/home-repair-explodes-in-old-mans-face-2385817","OG_TITLE","Home Repair Explodes In Old Man's Face",38]
["http://www.break.com/video/homemade-teenage-mutant-ninja-turtles-trailer-2509248","OG_TITLE","Homemade Teenage Mutant Ninja Turtles Trailer",45]
["http://www.break.com/video/horny-dog-ruins-music-video-378428","OG_TITLE","Horny Dog Ruins Music Video",27]
["http://www.break.com/video/horny-odie-the-wonder-dog-241714","OG_TITLE","Horny Odie The Wonder Dog",25]
["http://www.break.com/video/horrific-acura-prototype-crash-at-le-mans-1402833","OG_TITLE","Horrific Acura Prototype Crash At Le Mans",41]
["http://www.break.com/video/hot-blonde-gets-rid-of-one-night-stand-484483","OG_TITLE","Hot Blonde Gets Rid of One Night Stand",38]
["http://www.break.com/video/hot-chick-pranked-608700","OG_TITLE","Hot Chick Pranked",17]
["http://www.break.com/video/hot-chick-triple-pranked-695875","OG_TITLE","Hot Chick Triple Pranked",24]
["http://www.break.com/video/hot-weather-girl-mary-gamarra-compilation-476473","OG_TITLE","Hot Weather Girl Mary Gamarra Compilation",41]
["http://www.break.com/video/hottie-beaver-670428","OG_TITLE","Hottie Beaver",13]
["http://www.break.com/video/how-do-men-react-to-labor-pain-2443843","OG_TITLE","How Do Men React to Labor Pain?",31]
["http://www.break.com/video/how-not-to-steal-gas-2439073","OG_TITLE","How Not To Steal Gas",20]
["http://www.break.com/video/how-not-to-transport-a-giant-deer-statue-2508071","OG_TITLE","How Not to Transport a Giant Deer Statue",40]
["http://www.break.com/video/how-not-to-unload-a-car-593400","OG_TITLE","How Not To Unload A Car",23]
["http://www.break.com/video/how-to-deactivate-a-cat-2081407","OG_TITLE","How To Deactivate A Cat",23]
["http://www.break.com/video/how-to-fix-a-tail-light-2510338","OG_TITLE","How To Fix A Tail Light",23]
["http://www.break.com/video/how-to-make-glow-in-the-dark-mountain-dew-377900","OG_TITLE","How To Make Glow In The Dark Mountain Dew",41]
["http://www.break.com/video/huge-marlin-snagged-by-shark-690918","OG_TITLE","Huge Marlin Snagged by Shark",28]
["http://www.break.com/video/human-beatbox-vs-angry-german-kid-545771","OG_TITLE","Human Beatbox Vs Angry German Kid",33]
["http://www.break.com/video/human-dog-hybrid-eats-its-lunch-1742236","OG_TITLE","Human Dog Hybrid Eats Its Lunch",31]
["http://www.break.com/video/idiot-kid-catches-football-with-his-head-585494","OG_TITLE","Idiot Kid Catches Football with his Head",40]
["http://www.break.com/video/if-we-could-see-the-hearts-of-others-2444232","OG_TITLE","If We Could See The Hearts Of Others",36]
["http://www.break.com/video/immersion-online-gaming-distractions-1962065","OG_TITLE","Immersion: Online Gaming Distractions",37]
["http://www.break.com/video/incredible-aerial-forest-fire-fighting-at-yosemite-2510867","OG_TITLE","Incredible Aerial Forest Fire Fighting At Yosemite",50]
["http://www.break.com/video/insane-flexibility-863579","OG_TITLE","Insane Flexibility",18]
["http://www.break.com/video/insane-kid-fights-mother-1180594","OG_TITLE","Insane Kid Fights Mother",24]
["http://www.break.com/video/iron-palm-brick-breaking-spree-2018631","OG_TITLE","\"Iron Palm\" Brick-Breaking Spree",32]
["http://www.break.com/video/irony-a-robot-playing-rock-em-sock-em-robots-2402400","OG_TITLE","Irony: A Robot Playing \"Rock 'Em Sock 'Em Robots\"",50]
["http://www.break.com/video/it-just-takes-a-little-longer-2446994","OG_TITLE","It Just Takes A Little Longer",29]
["http://www.break.com/video/it-s-a-nice-day-for-a-white-trash-wedding-2508298","OG_TITLE","It’s A Nice Day For A White Trash Wedding",41]
["http://www.break.com/video/jackass-presents-bad-grandpa-trailer-is-actually-funny-2500402","OG_TITLE","‘Jackass Presents: Bad Grandpa’ Trailer Is Actually Funny",57]
["http://www.break.com/video/james-cameron-dives-to-the-marina-trench-2312459","OG_TITLE","James Cameron Dives To The Marina Trench",40]
["http://www.break.com/video/japan-has-better-fireworks-than-usa-2491761","OG_TITLE","Japan Has Better Fireworks Than USA",35]
["http://www.break.com/video/jimmy-s-calendar-collection-718631","OG_TITLE","Jimmy's Calendar Collection",27]
["http://www.break.com/video/joe-rogan-watches-2-girls-1-cup-401320","OG_TITLE","Joe Rogan Watches 2 Girls 1 Cup",31]
["http://www.break.com/video/journey-to-stone-city-2088761","OG_TITLE","Journey To Stone City",21]
["http://www.break.com/video/just-some-fishing-when-holy-crap-shark-2371121","OG_TITLE","Just Some Fishing When HOLY CRAP SHARK",38]
["http://www.break.com/video/karate-teacher-breaks-hand-on-cinder-block-455938","OG_TITLE","Karate Teacher Breaks Hand On Cinder Block",42]
["http://www.break.com/video/kate-upton-perfectly-timed-slow-motion-2084489","OG_TITLE","Kate Upton Perfectly Timed Slow Motion",38]
["http://www.break.com/video/kid-gets-more-than-he-bargained-with-free-kisses-stunt-2444642","OG_TITLE","Kid Gets More Than He Bargained With Free Kisses Stunt",54]
["http://www.break.com/video/kid-hit-in-head-with-baseball-355725","OG_TITLE","Kid Hit In Head With Baseball",29]
["http://www.break.com/video/kids-falls-out-of-car-on-busy-street-277326","OG_TITLE","Kids Falls Out of Car on Busy Street",36]
["http://www.break.com/video/kids-prophesized-the-rise-of-the-internet-2358900","OG_TITLE","Kids Prophesized The Rise of The Internet?",42]
["http://www.break.com/video/kitten-meets-hedgehog-2494325","OG_TITLE","Kitten Meets Hedgehog",21]
["http://www.break.com/video/lighting-a-bonfire-with-a-homemade-bazooka-2385039","OG_TITLE","Lighting A Bonfire With A Homemade Bazooka",42]
["http://www.break.com/video/lightning-fast-cop-stops-a-suicide-2436724","OG_TITLE","Lightning Fast Cop Stops A Suicide",34]
["http://www.break.com/video/lightning-strike-electrifies-train-2505751","OG_TITLE","Lightning Strike Electrifies Train",34]
["http://www.break.com/video/lightning-strike-hits-feet-away-2489376","OG_TITLE","Lightning Strike Hits Feet Away",31]
["http://www.break.com/video/lingerie-football-girl-fail-2327519","OG_TITLE","Lingerie Football Girl Fail",27]
["http://www.break.com/video/lionel-messi-refuses-to-fall-2304848","OG_TITLE","Lionel Messi Refuses To Fall",28]
["http://www.break.com/video/little-bit-tongue-what-2450456","OG_TITLE","Little Bit Tongue What?",23]
["http://www.break.com/video/little-girl-dancing-behind-reporter-2497840","OG_TITLE","Little Girl Dancing Behind Reporter",35]
["http://www.break.com/video/look-at-this-the-world-is-magnificent-2443941","OG_TITLE","Look At This: The World IS Magnificent",38]
["http://www.break.com/video/man-loses-life-savings-on-carnival-game-2439049","OG_TITLE","Idiot Loses Life Savings On Carnival Game",41]
["http://www.break.com/video/man-vs-monster-spider-2472461","OG_TITLE","Man Vs Monster Spider",21]
["http://www.break.com/video/man-vs-moose-2051504","OG_TITLE","Man Vs Moose",12]
["http://www.break.com/video/massive-launch-off-inflatable-blob-2505705","OG_TITLE","Massive Launch Off Inflatable Blob",34]
["http://www.break.com/video/massive-rogue-wave-hits-navy-ship-2449592","OG_TITLE","Massive Rogue Wave Hits Navy Ship",33]
["http://www.break.com/video/matt-kemp-gives-jersey-and-shoes-to-kid-with-cancer-2441796","OG_TITLE","Matt Kemp Gives Jersey And Shoes To Kid With Cancer",51]
["http://www.break.com/video/mexican-volcano-erupts-2464673","OG_TITLE","Mexican Volcano Erupts",22]
["http://www.break.com/video/mike-tyson-plays-mike-tysons-punch-out-for-the-first-time-2509302","OG_TITLE","Mike Tyson Plays Mike Tyson's Punch-Out For The First Time",58]
["http://www.break.com/video/military-robot-plays-creepiest-follow-the-leader-ever-2367977","OG_TITLE","Military Robot Plays Creepiest Follow The Leader Ever",53]
["http://www.break.com/video/mirrors-trailer-545265","OG_TITLE","Mirrors Trailer",15]
["http://www.break.com/video/miss-philippines-usa-contestant-explains-her-favorite-sense-2510432","OG_TITLE","Beauty Pageant Contestant Explains Her Favorite Senses",54]
["http://www.break.com/video/mom-tries-to-get-kids-to-fight-561416","OG_TITLE","Mom Tries To Get Kids To Fight",30]
["http://www.break.com/video/momma-panda-reunited-with-her-baby-2508790","OG_TITLE","Momma Panda Reunited With Her Baby",34]
["http://www.break.com/video/mortal-kombat-in-real-life-sektor-vs-russian-2507927","OG_TITLE","Mortal Kombat in Real Life: Sektor vs Russian",45]
["http://www.break.com/video/most-unexpected-mma-knockout-ever-707992","OG_TITLE","Most Unexpected MMA Knockout Ever",33]
["http://www.break.com/video/motocross-rider-crashes-then-run-over-multiple-times-534065","OG_TITLE","Motocross Rider Crashes Then Run Over Multiple Times",52]
["http://www.break.com/video/motorized-chair-escalator-bad-idea-2438833","OG_TITLE","Motorized Chair + Escalator = Bad Idea",38]
["http://www.break.com/video/must-see-incredible-knockout-2508074","OG_TITLE","Must See Incredible Knockout!",29]
["http://www.break.com/video/mustang-drag-race-goes-wrong-656042","OG_TITLE","Mustang Drag Race Goes Wrong",28]
["http://www.break.com/video/mythbuster-s-kari-byron-s-butt-584312","OG_TITLE","Mythbuster's Kari Byron's Butt",30]
["http://www.break.com/video/news-anchor-s-first-and-possibly-last-words-on-air-2436322","OG_TITLE","News Anchor’s First And Possibly Last Words On Air",50]
["http://www.break.com/video/newswoman-shows-off-her-penis-necklace-2402799","OG_TITLE","Newswoman Shows Off Her... Penis Necklace?",42]
["http://www.break.com/video/nice-girls-turning-naughty-380578","OG_TITLE","Nice Girls Turning Naughty",26]
["http://www.break.com/video/no-pants-yes-beer-565219","OG_TITLE","No Pants, Yes Beer",18]
["http://www.break.com/video/nuclear-explosion-in-space-2467223","OG_TITLE","Nuclear Explosion In Space",26]
["http://www.break.com/video/oklahoma-tornado-survivor-s-missing-dog-returns-2445849","OG_TITLE","Oklahoma Tornado Survivor’s Missing Dog Returns",47]
["http://www.break.com/video/old-man-owns-five-dudes-in-station-1881398","OG_TITLE","Old Man Owns Five Dudes In Station",34]
["http://www.break.com/video/old-men-shouldn-t-carry-heavy-church-statues-519913","OG_TITLE","Old Men Shouldn't Carry Heavy Church Statues",44]
["http://www.break.com/video/one-legged-man-returns-to-gym-2080277","OG_TITLE","One-Legged Man Returns To Gym",29]
["http://www.break.com/video/one-of-la-s-less-than-finest-2501305","OG_TITLE","One Of LA’s Less Than Finest",28]
["http://www.break.com/video/pacific-rim-trailer-gets-japanified-2500311","OG_TITLE","‘Pacific Rim’ Trailer Gets Japanified",37]
["http://www.break.com/video/paddle-boarder-meets-shark-2501831","OG_TITLE","Paddle Boarder Meets Shark",26]
["http://www.break.com/video/painful-workout-accident-335129","OG_TITLE","Painful Workout Accident",24]
["http://www.break.com/video/papa-i-really-miss-you-2510890","OG_TITLE","Papa, I Really Miss You",23]
["http://www.break.com/video/paralyzed-girl-makes-amazing-comeback-2250875","OG_TITLE","Paralyzed Girl Makes Amazing Comeback",37]
["http://www.break.com/video/paris-hilton-leaked-jail-phone-call-311428","OG_TITLE","Paris Hilton Leaked Jail Phone Call",35]
["http://www.break.com/video/paws-on-the-wall-2501290","OG_TITLE","Paws On The Wall",16]
["http://www.break.com/video/people-are-awesome-1942501","OG_TITLE","People Are Awesome",18]
["http://www.break.com/video/people-are-awesome-2013-2408807","OG_TITLE","People Are Awesome 2013",23]
["http://www.break.com/video/people-aren-t-the-only-awesome-people-2446173","OG_TITLE","People Aren’t the Only Awesome People",37]
["http://www.break.com/video/people-of-walmart-song-2063156","OG_TITLE","People Of Walmart Song",22]
["http://www.break.com/video/pick-your-fights-carefully-2434357","OG_TITLE","Pick Your Fights Carefully",26]
["http://www.break.com/video/pipe-gun-explodes-in-kids-face-2462355","OG_TITLE","Pipe Gun Explodes In Kid's Face",31]
["http://www.break.com/video/placing-the-spire-on-the-one-world-trade-center-2444820","OG_TITLE","Placing the Spire On The One World Trade Center",47]
["http://www.break.com/video/plane-crash-lands-on-the-beach-2505032","OG_TITLE","Plane Crash Lands On The Beach",30]
["http://www.break.com/video/plane-crashes-at-air-show-1920292","OG_TITLE","Plane Crashes At Air Show",25]
["http://www.break.com/video/police-officer-avoids-near-death-collission-67231","OG_TITLE","Police Officer Avoids Near Death Collission",43]
["http://www.break.com/video/police-shoot-man-with-beanbag-gun-2508775","OG_TITLE","Police Shoot Man With Beanbag Gun",33]
["http://www.break.com/video/policemen-public-dance-off-2511046","OG_TITLE","Policemen Public Dance Off!",27]
["http://www.break.com/video/polish-bully-one-punched-482306","OG_TITLE","Polish Bully One Punched",24]
["http://www.break.com/video/pop-the-balloon-game-gets-kinky-2490619","OG_TITLE","Pop The Balloon Game Gets Kinky",31]
["http://www.break.com/video/post-it-mario-2351387","OG_TITLE","Post-it Mario",14]
["http://www.break.com/video/prankster-gets-hit-in-throat-2381817","OG_TITLE","PRANKSTER GETS HIT IN THROAT",28]
["http://www.break.com/video/presentation-fight-ipad-vs-surface-2337989","OG_TITLE","Presentation Fight: iPad Vs. Surface",36]
["http://www.break.com/video/prison-escapee-convinces-cop-hes-just-out-for-a-jog-2356067","OG_TITLE","Prison Escapee Convinces Cop He's Just Out For A Jog",52]
["http://www.break.com/video/pug-enthralled-by-homeward-bound-ending-2499235","OG_TITLE","Pug ENTHRALLED By Homeward Bound Ending",39]
["http://www.break.com/video/pug-vs-camera-battle-of-the-tiny-titans-2505702","OG_TITLE","Pug Vs Camera: Battle Of The Tiny Titans",40]
["http://www.break.com/video/quadcopters-amazing-view-of-the-niagara-falls-2493865","OG_TITLE","Quadcopter's Amazing View Of The Niagara Falls",46]
["http://www.break.com/video/rabbit-shows-cat-who-is-boss-610076","OG_TITLE","Rabbit Shows Cat Who Is Boss",28]
["http://www.break.com/video/raccoon-steals-cats-food-2505056","OG_TITLE","Raccoons: Nature’s Hilarious Bandits",36]
["http://www.break.com/video/rapper-calls-out-chubby-white-kid-who-goes-off-on-stage-2441542","OG_TITLE","Rapper Calls Out Chubby White Kid, Who Goes OFF On Stage",56]
["http://www.break.com/video/real-lesbians-react-to-lesbian-porn-2446991","OG_TITLE","REAL Lesbians React to Lesbian Porn!",36]
["http://www.break.com/video/real-life-goldeneye64-multiplayer-2410490","OG_TITLE","Real-Life Goldeneye64 Multiplayer",33]
["http://www.break.com/video/reconstruction-of-flight-214-crash-2491768","OG_TITLE","Reconstruction Of Flight 214 Crash",34]
["http://www.break.com/video/redi-a-robot-made-with-red-vines-licorice-2446609","OG_TITLE","REDi, a robot made with Red Vines® Licorice",43]
["http://www.break.com/video/reef-shark-swims-among-fish-2000164","OG_TITLE","Reef Shark Swims Among Fish",27]
["http://www.break.com/video/relationship-survival-guide-the-ex-revenge-199276","OG_TITLE","Relationship Survival Guide: The Ex Revenge",43]
["http://www.break.com/video/remember-dogs-have-teeth-2444555","OG_TITLE","Remember: Dogs Have Teeth",25]
["http://www.break.com/video/removing-a-25-year-old-blackhead-2508348","OG_TITLE","The Biggest, Nastiest Blackhead Of All Time",43]
["http://www.break.com/video/reporter-loses-it-during-grumpy-cat-interview-2508846","OG_TITLE","Reporter Loses It During Grumpy Cat Interview",45]
["http://www.break.com/video/rescued-pitbull-is-mans-best-friend-2507570","OG_TITLE","Rescued Pitbull Is Man's Best Friend",36]
["http://www.break.com/video/russian-bear-ruins-fishermen-s-day-1974124","OG_TITLE","Russian Bear Ruins Fishermen's Day",34]
["http://www.break.com/video/russian-dude-s-painful-roof-jump-fail-1870122","OG_TITLE","Russian Dude's Painful Roof Jump Fail",37]
["http://www.break.com/video/russian-military-drills-2403020","OG_TITLE","Russian \"Military Drills\"",25]
["http://www.break.com/video/russian-parkour-super-dog-2358924","OG_TITLE","Russian Parkour Super Dog!",26]
["http://www.break.com/video/russian-smashes-womens-phone-after-accident-2509708","OG_TITLE","Russian Smashes Woman's Phone After Accident",44]
["http://www.break.com/video/russian-wedding-dance-battle-2510897","OG_TITLE","Russian Wedding Dance Battle",28]
["http://www.break.com/video/russians-rescue-moose-from-icy-waters-2452266","OG_TITLE","Russians Rescue Moose From Icy Waters",37]
["http://www.break.com/video/safety-cat-is-here-to-protect-you-2506040","OG_TITLE","Safety Cat Is Here To Protect You",33]
["http://www.break.com/video/scare-prank-backfires-on-boyfriend-2287331","OG_TITLE","Scare Prank Backfires On Boyfriend",34]
["http://www.break.com/video/scary-shark-attack-2414940","OG_TITLE","Scary shark attack",18]
["http://www.break.com/video/science-experiment-blows-up-2327912","OG_TITLE","Science Experiment Blows Up",27]
["http://www.break.com/video/science-lesson-comes-to-an-abrupt-end-2444986","OG_TITLE","Science Lesson Comes To An Abrupt End",37]
["http://www.break.com/video/screenjunkies-show/the-making-of-honest-trailers-2508797","OG_TITLE","ScreenJunkies Show | Break.com",30]
["http://www.break.com/video/search-for-the-past-2088757","OG_TITLE","Search For The Past",19]
["http://www.break.com/video/secret-video-from-cloverfield-435555","OG_TITLE","Secret Video from Cloverfield",29]
["http://www.break.com/video/sex-ed-class-in-iraq-377893","OG_TITLE","Sex Ed Class in Iraq",20]
["http://www.break.com/video/sexual-activity-trailer-1474131","OG_TITLE","Sexual Activity Trailer",23]
["http://www.break.com/video/shark-swims-ashore-in-new-jersey-1897030","OG_TITLE","Shark Swims Ashore in New Jersey",32]
["http://www.break.com/video/sharks-destroy-fisherman-s-catch-2451389","OG_TITLE","Sharks Destroy Fisherman’s Catch",32]
["http://www.break.com/video/sharks-steal-marlin-from-fisherman-2329786","OG_TITLE","Sharks Steal Marlin From Fisherman",34]
["http://www.break.com/video/sheep-protest-2506795","OG_TITLE","Sheep Protest!",14]
["http://www.break.com/video/shirtless-loser-receives-one-punch-ko-670305","OG_TITLE","Shirtless Loser Receives One-Punch KO",37]
["http://www.break.com/video/short-fight-fat-kid-knockout-408958","OG_TITLE","Short Fight Fat Kid Knockout",28]
["http://www.break.com/video/shower-panties-prank-204069","OG_TITLE","Shower Panties Prank",20]
["http://www.break.com/video/sim-city-with-population-of-six-million-people-1816690","OG_TITLE","Sim City With Population of Six Million People",46]
["http://www.break.com/video/skaters-save-babies-locked-in-van-2510404","OG_TITLE","Skaters Save Babies Locked In Van",33]
["http://www.break.com/video/skating-the-streets-of-san-francisco-2510314","OG_TITLE","Skating The Streets Of San Francisco",36]
["http://www.break.com/video/skipping-stones-like-a-boss-2316912","OG_TITLE","Skipping Stones Like A Boss",27]
["http://www.break.com/video/slow-motion-soccer-ownage-610333","OG_TITLE","Slow Motion Soccer Ownage",25]
["http://www.break.com/video/smell-my-finger-1422738","OG_TITLE","Smell My Finger",15]
["http://www.break.com/video/so-god-made-a-dog-2489985","OG_TITLE","So God Made A Dog",17]
["http://www.break.com/video/soccer-ball-takes-down-kid-168505","OG_TITLE","Soccer Ball Takes Down Kid",26]
["http://www.break.com/video/soldier-s-surprise-homecoming-2509691","OG_TITLE","Soldier’s Surprise Homecoming",29]
["http://www.break.com/video/sometimes-a-dog-s-gotta-make-his-own-fun-2505001","OG_TITLE","Sometimes A Dog’s Gotta Make His Own Fun",40]
["http://www.break.com/video/soulful-ella-mae-sings-an-american-trilogy-by-elvis-presley-2504530","OG_TITLE","Soulful Ella Mae Sings An American Trilogy By Elvis Presley",59]
["http://www.break.com/video/sport-fishing-guy-rides-whale-shark-1420676","OG_TITLE","Sport Fishing Guy Rides Whale Shark",35]
["http://www.break.com/video/steve-porter-s-slap-chop-rap-remix-716168","OG_TITLE","Steve Porter's Slap Chop Rap Remix",34]
["http://www.break.com/video/sticking-your-hand-in-a-beehive-2467659","OG_TITLE","Sticking Your Hand In A Beehive",31]
["http://www.break.com/video/stop-motion-donkey-kong-2499738","OG_TITLE","Stop Motion Donkey Kong",23]
["http://www.break.com/video/streaker-gets-taken-down-hard-2507571","OG_TITLE","Streaker Gets Taken Down Hard",29]
["http://www.break.com/video/stupid-reporter-2062168","OG_TITLE","Stupid Reporter",15]
["http://www.break.com/video/super-mario-bros-parkour-edition-2510857","OG_TITLE","Super Mario Bros : Parkour Edition",34]
["http://www.break.com/video/taking-a-ride-on-the-scream-swing-2500786","OG_TITLE","Taking A Ride On The Scream Swing",33]
["http://www.break.com/video/talking-cat-babysits-kitten-2505436","OG_TITLE","Sylvester The Talking Cat Has Attitude Problems",47]
["http://www.break.com/video/tears-of-joy-2493312","OG_TITLE","Tears Of Joy",12]
["http://www.break.com/video/temperature-change-over-last-130-years-2501311","OG_TITLE","Temperature Change Over Last 130 Years",38]
["http://www.break.com/video/the-amazing-trumpet-woman-2440127","OG_TITLE","The Amazing Trumpet Woman",25]
["http://www.break.com/video/the-bagram-batman-teaches-military-safety-2436513","OG_TITLE","The Bagram Batman Teaches Military Safety",41]
["http://www.break.com/video/the-baldness-miracle-cure-2335059","OG_TITLE","The Baldness Miracle Cure",25]
["http://www.break.com/video/the-best-move-in-professional-football-period-2443940","OG_TITLE","The Best Move In Professional Football. Period.",47]
["http://www.break.com/video/the-best-news-bloopers-of-may-2013-2449010","OG_TITLE","The Best News Bloopers Of May 2013",34]
["http://www.break.com/video/the-best-trained-dog-you-ll-see-today-2489315","OG_TITLE","The Best Trained Dog You’ll See Today",37]
["http://www.break.com/video/the-better-man-the-proper-shave-1991081","OG_TITLE","The Better Man: The Proper Shave",32]
["http://www.break.com/video/the-body-language-of-cats-2502504","OG_TITLE","The Body Language Of Cats",25]
["http://www.break.com/video/the-closest-you-ever-want-to-get-to-artillery-fire-2448578","OG_TITLE","The Closest You Ever Want To Get To Artillery Fire",50]
["http://www.break.com/video/the-craziest-ball-handling-you-ll-see-all-day-2438685","OG_TITLE","The Craziest Ball Handling You’ll See All Day",45]
["http://www.break.com/video/the-crying-robot-aka-nightmare-machine-2370632","OG_TITLE","The Crying Robot aka NIGHTMARE MACHINE!",39]
["http://www.break.com/video/the-cutest-website-2081637","OG_TITLE","The Cutest Website",18]
["http://www.break.com/video/the-dangers-of-being-in-the-pit-crew-2510865","OG_TITLE","The Dangers Of Being In The Pit Crew",36]
["http://www.break.com/video/the-extreme-japanese-raptor-prank-2510863","OG_TITLE","Extreme Japanese Raptor Prank",29]
["http://www.break.com/video/the-greatest-porn-collection-in-michigan-is-gone-2445114","OG_TITLE","The Greatest Porn Collection In Michigan Is Gone",48]
["http://www.break.com/video/the-greatest-skateboarding-dog-youll-see-today-2505446","OG_TITLE","The Greatest Skateboarding Dog You'll See Today",47]
["http://www.break.com/video/the-history-of-gaming-1988493","OG_TITLE","The History of Gaming",21]
["http://www.break.com/video/the-innovation-of-loneliness-2504484","OG_TITLE","The Innovation Of Loneliness",28]
["http://www.break.com/video/the-most-awkward-in-flight-situation-you-can-imagine-2496020","OG_TITLE","The Most Awkward In-Flight Situation You Can Imagine",52]
["http://www.break.com/video/the-most-insane-bike-tricks-youll-see-today-2448210","OG_TITLE","The Most Insane Bike Tricks You'll See Today",44]
["http://www.break.com/video/the-most-timely-advice-from-dad-ever-2443865","OG_TITLE","The Most Timely Advice From Dad Ever",36]
["http://www.break.com/video/the-ol-egg-on-the-head-trick-2441460","OG_TITLE","The Ol’ Egg On The Head Trick",29]
["http://www.break.com/video/the-perfect-show-and-tell-2178401","OG_TITLE","The Perfect Show And Tell",25]
["http://www.break.com/video/the-pigeon-man-working-out-2510894","OG_TITLE","The Pigeon Man Working Out",26]
["http://www.break.com/video/the-president-gets-a-new-dog-2507928","OG_TITLE","The President Gets A New Dog",28]
["http://www.break.com/video/the-robots-have-learned-to-play-air-hockey-2468778","OG_TITLE","The Robots Have Learned To Play Air Hockey",42]
["http://www.break.com/video/the-scare-cam-supercut-2507976","OG_TITLE","The Scare Cam Supercut",22]
["http://www.break.com/video/the-secret-of-the-grayskull-2088753","OG_TITLE","The Secret Of The Grayskull",27]
["http://www.break.com/video/the-self-hating-goat-2509130","OG_TITLE","The Self Hating Goat",20]
["http://www.break.com/video/the-shark-whisperer-2066338","OG_TITLE","The Shark Whisperer",19]
["http://www.break.com/video/the-sign-says-watch-out-for-signs-2508725","OG_TITLE","The Sign Says Watch Out For Signs",33]
["http://www.break.com/video/the-sleep-apnea-gamer-2473913","OG_TITLE","The Sleep Apnea Gamer",21]
["http://www.break.com/video/the-trainer-1902223","OG_TITLE","The Trainer",12]
["http://www.break.com/video/the-tree-swallowing-force-of-a-louisiana-sinkhole-2508728","OG_TITLE","The Tree-Swallowing Force Of A Louisiana Sinkhole",49]
["http://www.break.com/video/the-triangle-choke-proposal-2446197","OG_TITLE","The Triangle Choke Proposal",27]
["http://www.break.com/video/the-twilight-saga-breaking-dawn-part-1-tv-spot-2215661","OG_TITLE","The Twilight Saga: Breaking Dawn: Part 1 TV Spot",48]
["http://www.break.com/video/the-ultimate-dance-compilation-2448581","OG_TITLE","The Ultimate Dance Compilation",30]
["http://www.break.com/video/the-unaired-tosh-0-super-bowl-commercial-2000425","OG_TITLE","The Unaired Tosh.0 Super Bowl Commercial",41]
["http://www.break.com/video/the-worlds-end-trailer-2501301","OG_TITLE","The World's End Trailer",23]
["http://www.break.com/video/the-worlds-most-contagious-prank-2448124","OG_TITLE","The World's Most Contagious Prank",33]
["http://www.break.com/video/the-worst-job-ever-726252","OG_TITLE","The Worst Job Ever",18]
["http://www.break.com/video/the-worst-scooter-driver-in-china-2445861","OG_TITLE","The Worst Scooter Driver In China",33]
["http://www.break.com/video/this-dog-trick-needs-work-2499092","OG_TITLE","This Dog Trick Needs Work",25]
["http://www.break.com/video/this-guy-really-wants-to-sell-his-car-2445916","OG_TITLE","This Guy Really Wants To Sell His Car",37]
["http://www.break.com/video/this-is-about-as-fast-and-furious-as-it-gets-2445397","OG_TITLE","This Is About As Fast And Furious As It Gets",44]
["http://www.break.com/video/this-is-insanity-bmx-style-2395087","OG_TITLE","This Is Insanity. BMX-Style.",28]
["http://www.break.com/video/ticklish-lamb-wagging-tail-2509230","OG_TITLE","Ticklish Lamb Wagging Tail",26]
["http://www.break.com/video/tightrope-fail-over-pool-destroys-roof-2327233","OG_TITLE","Tightrope Fail Over Pool Destroys Roof",38]
["http://www.break.com/video/tiny-bird-scares-tiger-2079739","OG_TITLE","Tiny Bird Scares Tiger",22]
["http://www.break.com/video/tiny-kitten-dominates-pitt-bull-2511107","OG_TITLE","Tiny Kitten Dominates Pitt Bull",31]
["http://www.break.com/video/toddlers-are-adorably-bad-at-hide-and-seek-2508004","OG_TITLE","Toddlers Are Adorably Bad At Hide-And-Seek",42]
["http://www.break.com/video/top-ten-horror-movie-nude-scenes-1472671","OG_TITLE","Top Ten Horror Movie Nude Scenes",32]
["http://www.break.com/video/trick-play-touchdown-1949254","OG_TITLE","Trick Play Touchdown",20]
["http://www.break.com/video/trolling-the-weather-girl-2325585","OG_TITLE","Trolling The Weather Girl",25]
["http://www.break.com/video/tsunami-strikes-japan-2021817","OG_TITLE","Tsunami Strikes Japan",21]
["http://www.break.com/video/tube-snaps-exercise-guru-in-the-face-611484","OG_TITLE","Tube Snaps Exercise Guru in the Face",36]
["http://www.break.com/video/two-guys-flipping-and-shooting-2323484","OG_TITLE","Two Guys Flipping And Shooting",30]
["http://www.break.com/video/ufc-fighter-jon-jones-discovers-his-toe-is-horribly-injured-2438764","OG_TITLE","UFC Fighter Jon Jones Discovers His Toe Is Horribly Injured",59]
["http://www.break.com/video/ugc/adam-and-eves-first-conversation-1885230","OG_TITLE","Adam and Eves First Conversation",32]
["http://www.break.com/video/ugc/alice-307092","OG_TITLE","Alice",5]
["http://www.break.com/video/ugc/alice-eve-in-sexy-bra-and-panties-1986474","OG_TITLE","Alice Eve in sexy bra and panties",33]
["http://www.break.com/video/ugc/big-football-hit-345164","OG_TITLE","Big Football HIT",16]
["http://www.break.com/video/ugc/biggest-hits-in-college-and-pro-football-1690050","OG_TITLE","Biggest Hits in College and Pro Football",40]
["http://www.break.com/video/ugc/does-anna-friel-peel-in-land-of-the-lost-752661","OG_TITLE","Does Anna Friel Peel in Land of the Lost?",41]
["http://www.break.com/video/ugc/football-big-hit-348369","OG_TITLE","football big hit",16]
["http://www.break.com/video/ugc/high-school-football-hit-344787","OG_TITLE","High School Football Hit",24]
["http://www.break.com/video/ugc/how-to-enjoy-your-commute-to-work-with-mike-capes-2502520","OG_TITLE","How to Enjoy Your Commute to Work with Mike Capes",49]
["http://www.break.com/video/ugc/jk-puts-a-hit-on-345333","OG_TITLE","JK puts a hit on....",20]
["http://www.break.com/video/ugc/kid-hit-by-football-186374","OG_TITLE","Kid Hit By Football",19]
["http://www.break.com/video/ugc/miley-cyrus-ass-performing-2402174","OG_TITLE","Miley Cyrus Ass Performing",26]
["http://www.break.com/video/ugc/miley-cyrus-dead-640665","OG_TITLE","Miley Cyrus Dead",16]
["http://www.break.com/video/ugc/miley-cyrus-hottie-583844","OG_TITLE","Miley cyrus HOTTIE",18]
["http://www.break.com/video/ugc/miley-cyrus-leaked-photo-775399","OG_TITLE","Miley Cyrus Leaked Photo",25]
["http://www.break.com/video/ugc/miley-cyrus-saves-a-dog-1146369","OG_TITLE","Miley Cyrus Saves a dog!",24]
["http://www.break.com/video/ugc/miley-cyrus-trips-balls-1966622","OG_TITLE","Miley Cyrus Trips Balls",23]
["http://www.break.com/video/ugc/nfl-hardest-hits-1680048","OG_TITLE","NFL HARDEST HITS",16]
["http://www.break.com/video/ugc/the-official-miley-cyrus-rap-529071","OG_TITLE","The Official Miley Cyrus Rap",28]
["http://www.break.com/video/ultra-low-high-speed-fly-by-2498437","OG_TITLE","Ultra Low High Speed Fly By",27]
["http://www.break.com/video/urban-downhill-racing-is-awesomely-frightening-2421244","OG_TITLE","Urban Downhill Racing Is Awesomely Frightening",46]
["http://www.break.com/video/vandalism-nerd-style-2509685","OG_TITLE","Vandalism: Nerd Style",21]
["http://www.break.com/video/volcano-explorer-stares-death-in-the-face-2370291","OG_TITLE","Volcano Explorer Stares Death In The Face",41]
["http://www.break.com/video/volleyball-spike-triple-headshot-2395800","OG_TITLE","Volleyball Spike Triple Headshot",33]
["http://www.break.com/video/walking-down-stairs-is-for-suckers-2499074","OG_TITLE","Walking Down Stairs Is For Suckers",34]
["http://www.break.com/video/want-or-dont-want-microsofts-illumiroom-2440146","OG_TITLE","Want Or Don't Want: Microsoft's IllumiRoom",42]
["http://www.break.com/video/watch-this-guy-parkour-like-a-champ-2507484","OG_TITLE","Watch This Guy Parkour Like A Champ",35]
["http://www.break.com/video/water-bowl-prank-backfires-2444669","OG_TITLE","Water Bowl Prank Backfires",26]
["http://www.break.com/video/water-slides-just-got-10-deadlier-2444281","OG_TITLE","Water Slides Just Got 10% Deadlier",34]
["http://www.break.com/video/waterslide-stunts-447072","OG_TITLE","Waterslide Stunts",17]
["http://www.break.com/video/wave-jumping-hurricane-irene-swells-2508314","OG_TITLE","Wave Jumping Hurricane Irene Swells",35]
["http://www.break.com/video/we-ll-call-it-basebowl-2509131","OG_TITLE","We’ll Call It Basebowl",22]
["http://www.break.com/video/weather-girl-vs-giant-spider-2468277","OG_TITLE","Weather Girl Vs. Giant Spider",29]